Workbook

Sheet summary
B2: TAB: SUMMARY OF THE RESULTS | J2: BOND SCHEDULES
B4: Model Parameters | F4: Model Output Summary | J4: Bond option parameters
B5: =J5 -> Parameter | C5: =L5 -> Value | D5: =M5 -> Description | F5: =J5 -> Parameter | H5: =L5 -> Value | J5: Parameter | L5: Value | M5: Description
B6: Interest rate model | C6: =B35 -> Hull-White, extended Vasicek | F6: Bond actual value | H6: =tree!I44 -> -99.05147849 | J6: =config!B64 -> option | L6: =B39 -> call | M6: Option type (put or call)
B7: Valuation date | C7: 2019-01-01 | F7: Bond bullet value | H7: =tree!I45 -> -100
B8: credit rating | C8: BB- | D8: Bond transaction-specific credit rating | F8: Bond option value | H8: =H6-H7 -> 0.9485215075 | J8: Bond redemption premium / discount
B9: maturity term | C9: 5 | D9: Bond maturity term | J9: Year | K9: Period | L9: Value | M9: Description
B10: =config!B14 -> coupon-rate | C10: =cf!C21 -> 0.04358107358 | D10: Calibrated coupon rate | J10: =C12 -> 0.25 | K10: =INT(J10/$C$12) -> 1 | L10: 0 | M10: ="Bond redemption premium in period t=" & K10 -> Bond redemption premium in period t=1
B11: =config!B15 -> coupon-frequency | C11: 2 | D11: Coupon payment frequency | F11: Annuity adjustment factor (AAF) | H11: =tree!K37 -> 4.449506278 | J11: 2.5 | K11: =INT(J11/$C$12) -> 10 | L11: 0 | M11: ="Bond redemption premium in period t=" & K11 -> Bond redemption premium in period t=10
B12: =config!B9 -> dt | C12: 0.25 | D12: Length of the tree step (in years) | F12: Bond option premium / discount | H12: =H8/H11 -> 0.213174552 | J12: =C9 -> 5 | K12: =INT(J12/$C$12) -> 20 | L12: 0 | M12: Bond redemption premium at maturity
B13: drift parameter (ϑ) | C13: =params!H12 -> N/A | D13: Calibrated from the term structure
B14: mean-reversion parameter (α) | C14: =params!H13+0.000001 -> 1e-06 | D14: Default value is set to zero | J14: =config!B18 -> redemption-premium-schedule
B15: volatility (σ) | C15: =params!H11 -> 0.007588771271 | D15: Estimated using historical data sample | J15: =_xll.AC.data.map(K10:K12, L10:L12) -> java.util.LinkedHashMap@Thu, 7 Feb 2019 12:29:29:944..4617911987091833777 | M15: Redemption premium if option is exercised
B16: =config!B8 -> principal-amount | C16: 100 | D16: Bond principal amount
B17: number of periods | C17: =INT(C9/C12) -> 20 | D17: Number of tree steps
B20: Model Validation Summary | J20: Bond amortization schedule
J21: Year | K21: Period | L21: Value | M21: Description
C22: Zero-price bond | D22: Terminal distribution parameters | F22: Implied model parameters | J22: =C12 -> 0.25 | K22: =INT(J22/$C$12) -> 1 | L22: 0 | M22: ="% of bond amortization in period t=" & K22 -> % of bond amortization in period t=1
B23: =_xll.AC.data._get(_xll.AC.finance.srm.validate.get(tree!I29, config!B42), "", 0) -> Model type | C23: Bullet price | D23: Terminal mean | E23: Terminal stdev | F23: Implied mean | G23: Implied stdev | J23: 1.75 | K23: =INT(J23/$C$12) -> 7 | L23: 0 | M23: ="% of bond amortization in period t=" & K23 -> % of bond amortization in period t=7
B24: Numeric model | C24: 100 | D24: 0.06470051272 | E24: 0.01687719676 | F24: 0.006808102544 | G24: 0.007547711845 | J24: 3.5 | K24: =INT(J24/$C$12) -> 14 | L24: 0 | M24: % of bond amortization in period t=14
B25: Theoretic model | C25: 99.58142503 | D25: 0.06469746856 | E25: 0.01696900843 | F25: 0.006807493711 | G25: 0.007588771271 | J25: =C9 -> 5 | K25: =INT(J25/$C$12) -> 20 | L25: =1-SUM(L22:L24) -> 1 | M25: % of bond amortization at maturity
B26: Difference | C26: =C24-C25 -> 0.4185749722 | D26: =D24-D25 -> 3.044162832e-06 | E26: =E24-E25 -> -9.18116668e-05 | F26: =F24-F25 -> 6.088325664e-07 | G26: -4.105942562e-05
C28: =IF(config!M42, IF(L6=B39, "", "adjusted put discount"), "") ->  | D28: =IF(config!M42, IF(L6=B39, "", "term premium"), "") ->  | E28: =IF(config!M42, "AAF", "") -> AAF | J28: =config!B20 -> amortization-schedule
B29: =IF(config!M42, IF(L6=B39, "Adjusted call premium", "Compare term premium vs put discount"), "") -> Adjusted call premium | C29: =IF(config!M42, H8/tree!K38/100, "") -> 0.003378757024 | D29: =IF(config!M42, IF(L6=B39, "", cf!C21-params!G24), "") ->  | E29: =IF(config!M42, tree!K38, "") -> 2.807309021 | J29: =_xll.AC.data.map(K22:K25, L22:L25) -> java.util.LinkedHashMap@Thu, 7 Feb 2019 12:29:29:984..1286073431040083501 | M29: Bond amortization schedule
B32: Markov process models | J32: Interest deferral schedule
B33: =config!G38 -> Vasicek | J33: Parameter | K33: Value | M33: Description
B34: =config!G39 -> Cox-Ingersoll-Ross (CIR) | J34: interest deferral period | L34: 0 | M34: The latest coupon payments deferral period
B35: =config!G40 -> Hull-White, extended Vasicek | J35: is compounded | L35: 1 | M35: 1 if deferred interest is compounded (0 otherwise)
B36: =config!G41 -> Hull-White, extended CIR
B38: Interest rate options | J38: Controls
B39: =config!G44 -> call | J39: Ctrl+Shft+C | K39: Ctrl+Shft+D | M39: Ctrl+Shft+S | N39: Ctrl+Shft+V
B40: =config!G45 -> put

Sheet params
B2: TAB: OPTION PARAMETERS ESTIMATION
B4: Yield series | C4: Volatility series | E4: Parameter | G4: Value | I4: Description
B5: =IF(ylds!C6="", "", ylds!C6/100) -> 0.03066 | C5: =_xll.AC.data._get(I47, "", 0) -> 0.004199873669 | E5: Model | G5: =summary!C6 -> Hull-White, extended Vasicek
B6: =IF(ylds!C7="", "", ylds!C7/100) -> 0.03038 | C6: 0.00414994356 | E6: =config!B43 -> tenor-term-structure | G6: =MAX(10, summary!C9) -> 10 | I6: Tenor for ϑ calibration
B7: =IF(ylds!C8="", "", ylds!C8/100) -> 0.03013 | C7: 0.004198371466 | E7: =config!B44 -> sample-size | G7: 250 | I7: Sample size in number of business days
B8: =IF(ylds!C9="", "", ylds!C9/100) -> 0.02992 | C8: 0.004276468086 | E8: =config!B45 -> sample-size-min | G8: 30
B9: =IF(ylds!C10="", "", ylds!C10/100) -> 0.02965 | C9: 0.004213761192
B10: =IF(ylds!C11="", "", ylds!C11/100) -> 0.02958 | C10: 0.004449388772 | E10: Parameter | G10: Estimated | H10: Override | I10: Notation
B11: =IF(ylds!C12="", "", ylds!C12/100) -> 0.0293 | C11: 0.004392562336 | E11: =config!B31 -> volatility | G11: =_xll.AC.data._get($I$46, E11, ) -> 0.007588771271 | H11: =G11 -> 0.007588771271 | I11: σ
B12: =IF(ylds!C13="", "", ylds!C13/100) -> 0.02892 | C12: 0.004332921985 | E12: =config!B33 -> drift | G12: =_xll.AC.data._get($I$46, E12, ) -> N/A | H12: =G12 -> N/A | I12: ϑ
B13: =IF(ylds!C14="", "", ylds!C14/100) -> 0.02881 | C13: 0.00427565328 | E13: =config!B35 -> mean-reversion | G13: =_xll.AC.data._get($I$46, E13, ) -> 0 | H13: =G13 -> 0 | I13: α
B14: =IF(ylds!C15="", "", ylds!C15/100) -> 0.02853 | C14: 0.00422052204 | E14: =config!B34 -> drift-function | G14: =_xll.AC.data._get($I$52, E14, ) -> java.util.LinkedHashMap@Thu, 7 Feb 2019 12:29:30:094..1200399959172200018 | J14: =_xll.AC.data.size(G14, 1) -> 13 | L14: Final (post-overriding)
B15: =IF(ylds!C16="", "", ylds!C16/100) -> 0.02829 | C15: 0.004363504229
B16: =IF(ylds!C17="", "", ylds!C17/100) -> 0.02848 | C16: 0.00462311374
B17: =IF(ylds!C18="", "", ylds!C18/100) -> 0.02834 | C17: 0.004813745703 | E17: Yield term-structure (Bloomberg) | H17: Estimated yield term structure (using final parameters)
B18: =IF(ylds!C19="", "", ylds!C19/100) -> 0.02863 | C18: 0.00477661843
B19: =IF(ylds!C20="", "", ylds!C20/100) -> 0.02821 | C19: 0.004738841783 | E19: =config!B37 -> srm-functions-estimate | H19: =_xll.AC.finance.srm.params.get(I51, E19, ) -> java.util.ArrayList@Thu, 7 Feb 2019 12:29:30:094..7994704202743506432 | J19: =_xll.AC.data.size(H19, 1) -> 13 | L19: =_xll.AC.data.size(H19, 2) -> 3
B20: =IF(ylds!C21="", "", ylds!C21/100) -> 0.02837 | C20: 0.00475286827 | E20: Actual | H20: Estimated
B21: =IF(ylds!C22="", "", ylds!C22/100) -> 0.02828 | C21: 0.004701096378 | E21: Index | F21: Tenor | G21: Yield | H21: Period | I21: Yield | J21: Drift | K21: Drift Cum | L21: Difference
B22: =IF(ylds!C23="", "", ylds!C23/100) -> 0.02802 | C22: 0.004729569837 | E22: 1 | F22: =OFFSET(ylds!$B$5, 0, E22) -> 0.25 | G22: =IF(OFFSET(ylds!$B$6, 0, E22)="", "", OFFSET(ylds!$B$6, 0, E22)/100) -> 0.03066 | H22: =_xll.AC.data._get(H19, "", 0) -> 0.25 | I22: 0.03066 | J22: 4.799120783e-06 | K22: =J22 -> 4.799120783e-06 | L22: =IF(OR(G22="", J22=""), "", G22-J22) -> 0.03065520088
B23: =IF(ylds!C24="", "", ylds!C24/100) -> 0.02775 | C23: 0.004874541709 | E23: =E22+1 -> 2 | F23: =OFFSET(ylds!$B$5, 0, E23) -> 0.5 | G23: =IF(OFFSET(ylds!$B$6, 0, E23)="", "", OFFSET(ylds!$B$6, 0, E23)/100) -> 0.03066 | H23: 0.5 | I23: 0.03066 | J23: 2.399560392e-05 | K23: =IF(H23="", "", K22+J23*(H23-H22)) -> 1.079802176e-05 | L23: 0.0306360044
B24: =IF(ylds!C25="", "", ylds!C25/100) -> 0.02774 | C24: 0.004826011766 | E24: =E23+1 -> 3 | F24: =OFFSET(ylds!$B$5, 0, E24) -> 1 | G24: =IF(OFFSET(ylds!$B$6, 0, E24)="", "", OFFSET(ylds!$B$6, 0, E24)/100) -> 0.0318 | H24: 1 | I24: 0.0318 | J24: 0.009158392966 | K24: =IF(H24="", "", K23+J24*(H24-H23)) -> 0.004589994505 | L24: 0.02264160703
B25: =IF(ylds!C26="", "", ylds!C26/100) -> 0.02782 | C25: 0.004793934671 | E25: 4 | F25: =OFFSET(ylds!$B$5, 0, E25) -> 2 | G25: =IF(OFFSET(ylds!$B$6, 0, E25)="", "", OFFSET(ylds!$B$6, 0, E25)/100) -> 0.03394 | H25: 2 | I25: 0.03394 | J25: 0.001801585053 | K25: 0.006391579558 | L25: 0.03213841495
B26: =IF(ylds!C27="", "", ylds!C27/100) -> 0.02808 | C26: 0.004855977916 | E26: 5 | F26: =OFFSET(ylds!$B$5, 0, E26) -> 3 | G26: =IF(OFFSET(ylds!$B$6, 0, E26)="", "", OFFSET(ylds!$B$6, 0, E26)/100) -> 0.03802 | H26: 3 | I26: 0.03802 | J26: 0.01862877274 | K26: 0.0250203523 | L26: 0.01939122726
B27: =IF(ylds!C28="", "", ylds!C28/100) -> 0.02793 | C27: 0.004921630707 | E27: 6 | F27: =OFFSET(ylds!$B$5, 0, E27) -> 4 | G27: =IF(OFFSET(ylds!$B$6, 0, E27)="", "", OFFSET(ylds!$B$6, 0, E27)/100) -> 0.04181 | H27: 4 | I27: 0.04181 | J27: -0.004283236048 | K27: 0.02073711625 | L27: 0.04609323605
B28: =IF(ylds!C29="", "", ylds!C29/100) -> 0.02737 | C28: 0.005210763431 | E28: 7 | F28: =OFFSET(ylds!$B$5, 0, E28) -> 5 | G28: =IF(OFFSET(ylds!$B$6, 0, E28)="", "", OFFSET(ylds!$B$6, 0, E28)/100) -> 0.04494 | H28: 5 | I28: 0.04494 | J28: 0.01330395164 | K28: 0.0340410679 | L28: 0.03163604836
B29: =IF(ylds!C30="", "", ylds!C30/100) -> 0.02743 | C29: 0.005164051053 | E29: 8 | F29: =OFFSET(ylds!$B$5, 0, E29) -> 7 | G29: =IF(OFFSET(ylds!$B$6, 0, E29)="", "", OFFSET(ylds!$B$6, 0, E29)/100) -> 0.04788 | H29: 7 | I29: 0.04788 | J29: -0.008421260226 | K29: 0.01719854744 | L29: 0.05630126023
B30: =IF(ylds!C31="", "", ylds!C31/100) -> 0.02772 | C30: 0.005430223199 | E30: 9 | F30: =OFFSET(ylds!$B$5, 0, E30) -> 8 | G30: =IF(OFFSET(ylds!$B$6, 0, E30)="", "", OFFSET(ylds!$B$6, 0, E30)/100) -> 0.05302 | H30: 8 | I30: 0.05302 | J30: 0.08553430944 | K30: 0.1027328569 | L30: -0.03251430944
B31: =IF(ylds!C32="", "", ylds!C32/100) -> 0.02756 | C31: 0.005446608383 | E31: 10 | F31: =OFFSET(ylds!$B$5, 0, E31) -> 9 | G31: =IF(OFFSET(ylds!$B$6, 0, E31)="", "", OFFSET(ylds!$B$6, 0, E31)/100) -> 0.05498 | H31: 9 | I31: 0.05498 | J31: -0.1212928783 | K31: -0.01856002136 | L31: 0.1762728783
B32: =IF(ylds!C33="", "", ylds!C33/100) -> 0.02813 | C32: 0.00561244248 | E32: 11 | F32: =OFFSET(ylds!$B$5, 0, E32) -> 10 | G32: =IF(OFFSET(ylds!$B$6, 0, E32)="", "", OFFSET(ylds!$B$6, 0, E32)/100) -> 0.05668 | H32: 10 | I32: 0.05668 | J32: 0.1249694883 | K32: 0.106409467 | L32: -0.06828948834
B33: =IF(ylds!C34="", "", ylds!C34/100) -> 0.02818 | C33: 0.005577425468 | E33: 12 | F33: =OFFSET(ylds!$B$5, 0, E33) -> 15 | G33: =IF(OFFSET(ylds!$B$6, 0, E33)="", "", OFFSET(ylds!$B$6, 0, E33)/100) -> 0.05843 | H33: 15 | I33: 0.05843 | J33: -0.02823068116 | K33: -0.03474393881 | L33: 0.08666068116
B34: =IF(ylds!C35="", "", ylds!C35/100) -> 0.02811 | C34: 0.005532247657 | E34: 13 | F34: =OFFSET(ylds!$B$5, 0, E34) -> 20 | G34: =IF(OFFSET(ylds!$B$6, 0, E34)="", "", OFFSET(ylds!$B$6, 0, E34)/100) -> 0.06578 | H34: 20 | I34: 0.06578 | J34: 0.04031836464 | K34: 0.1668478844 | L34: 0.02546163536
B35: =IF(ylds!C36="", "", ylds!C36/100) -> 0.0276 | C35: 0.005813629449 | E35: 14 | F35: =OFFSET(ylds!$B$5, 0, E35) -> 25 | G35: =IF(OFFSET(ylds!$B$6, 0, E35)="", "", OFFSET(ylds!$B$6, 0, E35)/100) -> 
B36: =IF(ylds!C37="", "", ylds!C37/100) -> 0.02744 | C36: 0.005783374755 | E36: 15 | F36: =OFFSET(ylds!$B$5, 0, E36) -> 30 | G36: =IF(OFFSET(ylds!$B$6, 0, E36)="", "", OFFSET(ylds!$B$6, 0, E36)/100) -> 
B37: =IF(ylds!C38="", "", ylds!C38/100) -> 0.02707 | C37: 0.005789031305
B38: =IF(ylds!C39="", "", ylds!C39/100) -> 0.02665 | C38: 0.005760007672
B39: =IF(ylds!C40="", "", ylds!C40/100) -> 0.0266 | C39: 0.005995528917 | E39: A. Parameter calculator parameters
B40: =IF(ylds!C41="", "", ylds!C41/100) -> 0.02598 | C40: 0.006040252273 | E40: Historical sample | G40: =COUNT(B5:B5000) -> 308 | I40: =_xll.AC.data.list_x(OFFSET(B5, 0, 0, G40, 1), 1, 1) -> java.util.ArrayList@Thu, 7 Feb 2019 12:29:29:960..258342020851790235 | N40: =_xll.AC.data.size(I40, 1) -> 308
B41: =IF(ylds!C42="", "", ylds!C42/100) -> 0.02604 | C41: 0.006029183558 | E41: Term structure | I41: =_xll.AC.data.map(F22:F36, G22:G36) -> java.util.LinkedHashMap@Thu, 7 Feb 2019 12:29:29:985..5454571165358206357 | N41: =_xll.AC.data.size(I41, 1) -> 15
B42: =IF(ylds!C43="", "", ylds!C43/100) -> 0.02603 | C42: 0.005986397737 | E42: Calculator parameters | I42: =_xll.AC.data.map(E6:E8, G6:G8) -> java.util.LinkedHashMap@Thu, 7 Feb 2019 12:29:29:944..1199109336555155142 | N42: =_xll.AC.data.size(I42, 1) -> 3
B43: =IF(ylds!C44="", "", ylds!C44/100) -> 0.02602 | C43: 0.006018244575
B44: =IF(ylds!C45="", "", ylds!C45/100) -> 0.02599 | C44: 0.005986270391 | E44: B. Parameter calculator
B45: =IF(ylds!C46="", "", ylds!C46/100) -> 0.02545 | C45: 0.005944030498 | E45: SRM parameter calculator | I45: =_xll.AC.finance.srm.params.estimate(G5, I40, I41, I42) -> jeconkr.finance.HW.Derivatives2003.lib.ch23_srm.calculator.parameter.CalculatorParameterHullWhiteVasicek@Thu, 7 Feb 2019 12:39:22:689..1129292016293992913
B46: =IF(ylds!C47="", "", ylds!C47/100) -> 0.02475 | C46: 0.005927518754 | E46: SRM parameters | G46: =config!B30 -> srm-params | I46: =_xll.AC.finance.srm.params.get(I45, G46, ) -> java.util.LinkedHashMap@Thu, 7 Feb 2019 12:29:30:077..8753561202850718627 | N46: =_xll.AC.data.size(I46, 1) -> 5
B47: =IF(ylds!C48="", "", ylds!C48/100) -> 0.02535 | C47: 0.006099148652 | E47: =config!B32 -> volatility-function | I47: =_xll.AC.data._get($I$46, E47, ) -> java.util.ArrayList@Thu, 7 Feb 2019 12:29:30:077..7367844475793828079 | N47: =_xll.AC.data.size(I47, 1) -> 278 | O47: Estimated (prior to overriding)
B48: =IF(ylds!C49="", "", ylds!C49/100) -> 0.02515 | C48: 0.006180122184 | E48: number of eliminated observations (in volatility estimation) | N48: =G40-G8-N47 -> 0
B49: =IF(ylds!C50="", "", ylds!C50/100) -> 0.02496 | C49: 0.006156418314
B50: =IF(ylds!C51="", "", ylds!C51/100) -> 0.0246 | C50: 0.006115252435 | E50: C. Override manually model parameters
B51: =IF(ylds!C52="", "", ylds!C52/100) -> 0.02456 | C51: 0.006083914945 | E51: SRM parameter calculator | I51: =_xll.AC.finance.srm.params.override(I45, I40, I41, _xll.AC.data.map(E11:E13, H11:H13)) -> jeconkr.finance.HW.Derivatives2003.lib.ch23_srm.calculator.parameter.CalculatorParameterHullWhiteVasicek@Thu, 7 Feb 2019 12:39:22:689..2858042582443769890
B52: =IF(ylds!C53="", "", ylds!C53/100) -> 0.02491 | C52: 0.006059388833 | E52: SRM parameters | G52: =G46 -> srm-params | I52: =_xll.AC.finance.srm.params.get(I51, G52, ) -> java.util.LinkedHashMap@Thu, 7 Feb 2019 12:29:30:094..84125959001893201 | N52: =_xll.AC.data.size(I52, 1) -> 5
B53: =IF(ylds!C54="", "", ylds!C54/100) -> 0.02429 | C53: 0.006033605098
B54: =IF(ylds!C55="", "", ylds!C55/100) -> 0.02432 | C54: 0.006004096315
B55: =IF(ylds!C56="", "", ylds!C56/100) -> 0.02412 | C55: 0.006134767372
B56: =IF(ylds!C57="", "", ylds!C57/100) -> 0.02456 | C56: 0.006148428904
B57: =IF(ylds!C58="", "", ylds!C58/100) -> 0.02406 | C57: 0.006114576209
B58: =IF(ylds!C59="", "", ylds!C59/100) -> 0.02319 | C58: 0.006089322508
B59: =IF(ylds!C60="", "", ylds!C60/100) -> 0.02323 | C59: 0.006071846895
B60: =IF(ylds!C61="", "", ylds!C61/100) -> 0.02406 | C60: 0.006036825158
B61: =IF(ylds!C62="", "", ylds!C62/100) -> 0.02364 | C61: 0.00607514785
B62: =IF(ylds!C63="", "", ylds!C63/100) -> 0.02435 | C62: 0.006145150631
B63: =IF(ylds!C64="", "", ylds!C64/100) -> 0.02414 | C63: 0.006309119517
B64: =IF(ylds!C65="", "", ylds!C65/100) -> 0.02404 | C64: 0.006561660855
B65: =IF(ylds!C66="", "", ylds!C66/100) -> 0.02496 | C65: 0.006536096023
B66: =IF(ylds!C67="", "", ylds!C67/100) -> 0.02516 | C66: 0.006565396727
B67: =IF(ylds!C68="", "", ylds!C68/100) -> 0.02475 | C67: 0.006550537592
B68: =IF(ylds!C69="", "", ylds!C69/100) -> 0.02495 | C68: 0.006809298477
B69: =IF(ylds!C70="", "", ylds!C70/100) -> 0.02401 | C69: 0.006794675837
B70: =IF(ylds!C71="", "", ylds!C71/100) -> 0.02452 | C70: 0.00685283129
B71: =IF(ylds!C72="", "", ylds!C72/100) -> 0.02483 | C71: 0.006838151771
B72: =IF(ylds!C73="", "", ylds!C73/100) -> 0.02472 | C72: 0.0068028136
B73: =IF(ylds!C74="", "", ylds!C74/100) -> 0.0242 | C73: 0.006792037258
B74: =IF(ylds!C75="", "", ylds!C75/100) -> 0.02398 | C74: 0.006757743007
B75: =IF(ylds!C76="", "", ylds!C76/100) -> 0.02391 | C75: 0.00674827721
B76: =IF(ylds!C77="", "", ylds!C77/100) -> 0.02418 | C76: 0.006747634148
B77: =IF(ylds!C78="", "", ylds!C78/100) -> 0.0233 | C77: 0.006759467766
B78: =IF(ylds!C79="", "", ylds!C79/100) -> 0.02394 | C78: 0.006766763239
B79: =IF(ylds!C80="", "", ylds!C80/100) -> 0.02366 | C79: 0.006864085026
B80: =IF(ylds!C81="", "", ylds!C81/100) -> 0.02363 | C80: 0.006864569586
B81: =IF(ylds!C82="", "", ylds!C82/100) -> 0.02379 | C81: 0.006835625251
B82: =IF(ylds!C83="", "", ylds!C83/100) -> 0.02353 | C82: 0.006830032309
B83: =IF(ylds!C84="", "", ylds!C84/100) -> 0.02373 | C83: 0.006891600887
B84: =IF(ylds!C85="", "", ylds!C85/100) -> 0.02389 | C84: 0.006872760634
B85: =IF(ylds!C86="", "", ylds!C86/100) -> 0.02306 | C85: 0.006845559626
B86: =IF(ylds!C87="", "", ylds!C87/100) -> 0.02349 | C86: 0.006815642097
B87: =IF(ylds!C88="", "", ylds!C88/100) -> 0.02359 | C87: 0.006793297684
B88: =IF(ylds!C89="", "", ylds!C89/100) -> 0.02335 | C88: 0.006763173214
B89: =IF(ylds!C90="", "", ylds!C90/100) -> 0.02305 | C89: 0.006734987255
B90: =IF(ylds!C91="", "", ylds!C91/100) -> 0.02297 | C90: 0.006719510955
B91: =IF(ylds!C92="", "", ylds!C92/100) -> 0.0235 | C91: 0.006697097315
B92: =IF(ylds!C93="", "", ylds!C93/100) -> 0.02281 | C92: 0.006678209208
B93: =IF(ylds!C94="", "", ylds!C94/100) -> 0.02372 | C93: 0.006667457938
B94: =IF(ylds!C95="", "", ylds!C95/100) -> 0.02255 | C94: 0.006639392804
B95: =IF(ylds!C96="", "", ylds!C96/100) -> 0.0223 | C95: 0.006621721541
B96: =IF(ylds!C97="", "", ylds!C97/100) -> 0.02172 | C96: 0.006595496916
B97: =IF(ylds!C98="", "", ylds!C98/100) -> 0.02138 | C97: 0.006577945663
B98: =IF(ylds!C99="", "", ylds!C99/100) -> 0.02015 | C98: 0.006618922279
B99: =IF(ylds!C100="", "", ylds!C100/100) -> 0.02046 | C99: 0.006593492168
B100: =IF(ylds!C101="", "", ylds!C101/100) -> 0.01974 | C100: 0.006567487672
B101: =IF(ylds!C102="", "", ylds!C102/100) -> 0.02005 | C101: 0.006550645005
B102: =IF(ylds!C103="", "", ylds!C103/100) -> 0.02003 | C102: 0.006538126119
B103: =IF(ylds!C104="", "", ylds!C104/100) -> 0.01965 | C103: 0.006543190992
B104: =IF(ylds!C105="", "", ylds!C105/100) -> 0.01965 | C104: 0.006544872605
B105: =IF(ylds!C106="", "", ylds!C106/100) -> 0.01999 | C105: 0.006590977538
B106: =IF(ylds!C107="", "", ylds!C107/100) -> 0.02039 | C106: 0.006591684985
B107: =IF(ylds!C108="", "", ylds!C108/100) -> 0.01987 | C107: 0.006680594986
B108: =IF(ylds!C109="", "", ylds!C109/100) -> 0.02032 | C108: 0.006657059114
B109: =IF(ylds!C110="", "", ylds!C110/100) -> 0.01944 | C109: 0.006652737776
B110: =IF(ylds!C111="", "", ylds!C111/100) -> 0.01898 | C110: 0.006631307551
B111: =IF(ylds!C112="", "", ylds!C112/100) -> 0.0191 | C111: 0.006638503508
B112: =IF(ylds!C113="", "", ylds!C113/100) -> 0.01947 | C112: 0.00663040936
B113: =IF(ylds!C114="", "", ylds!C114/100) -> 0.02019 | C113: 0.006608229662
B114: =IF(ylds!C115="", "", ylds!C115/100) -> 0.01989 | C114: 0.006600871893
B115: =IF(ylds!C116="", "", ylds!C116/100) -> 0.01971 | C115: 0.00660501304
B116: =IF(ylds!C117="", "", ylds!C117/100) -> 0.01961 | C116: 0.006604448295
B117: =IF(ylds!C118="", "", ylds!C118/100) -> 0.01981 | C117: 0.006598721879
B118: =IF(ylds!C119="", "", ylds!C119/100) -> 0.01979 | C118: 0.006594045546
B119: =IF(ylds!C120="", "", ylds!C120/100) -> 0.01967 | C119: 0.006614993823
B120: =IF(ylds!C121="", "", ylds!C121/100) -> 0.01994 | C120: 0.006597513386
B121: =IF(ylds!C122="", "", ylds!C122/100) -> 0.02012 | C121: 0.006581925993
B122: =IF(ylds!C123="", "", ylds!C123/100) -> 0.01985 | C122: 0.006594819505
B123: =IF(ylds!C124="", "", ylds!C124/100) -> 0.02016 | C123: 0.006585867782
B124: =IF(ylds!C125="", "", ylds!C125/100) -> 0.02013 | C124: 0.006583408314
B125: =IF(ylds!C126="", "", ylds!C126/100) -> 0.02036 | C125: 0.006735168583
B126: =IF(ylds!C127="", "", ylds!C127/100) -> 0.02025 | C126: 0.006713997738
B127: =IF(ylds!C128="", "", ylds!C128/100) -> 0.01998 | C127: 0.006692216693
B128: =IF(ylds!C129="", "", ylds!C129/100) -> 0.02062 | C128: 0.006685527428
B129: =IF(ylds!C130="", "", ylds!C130/100) -> 0.02069 | C129: 0.006797420941
B130: =IF(ylds!C131="", "", ylds!C131/100) -> 0.02072 | C130: 0.006781606556
B131: =IF(ylds!C132="", "", ylds!C132/100) -> 0.02045 | C131: 0.00712845296
B132: =IF(ylds!C133="", "", ylds!C133/100) -> 0.02013 | C132: 0.007139201701
B133: =IF(ylds!C134="", "", ylds!C134/100) -> 0.02056 | C133: 0.007142926009
B134: =IF(ylds!C135="", "", ylds!C135/100) -> 0.02011 | C134: 0.007121011606
B135: =IF(ylds!C136="", "", ylds!C136/100) -> 0.01939 | C135: 0.007098805762
B136: =IF(ylds!C137="", "", ylds!C137/100) -> 0.01979 | C136: 0.00707678183
B137: =IF(ylds!C138="", "", ylds!C138/100) -> 0.02066 | C137: 0.007068088069
B138: =IF(ylds!C139="", "", ylds!C139/100) -> 0.02053 | C138: 0.007065789639
B139: =IF(ylds!C140="", "", ylds!C140/100) -> 0.02089 | C139: 0.00712244795
B140: =IF(ylds!C141="", "", ylds!C141/100) -> 0.02102 | C140: 0.007100886808
B141: =IF(ylds!C142="", "", ylds!C142/100) -> 0.02052 | C141: 0.00708194507
B142: =IF(ylds!C143="", "", ylds!C143/100) -> 0.02084 | C142: 0.007061827199
B143: =IF(ylds!C144="", "", ylds!C144/100) -> 0.0207 | C143: 0.007040795453
B144: =IF(ylds!C145="", "", ylds!C145/100) -> 0.02033 | C144: 0.007021384086
B145: =IF(ylds!C146="", "", ylds!C146/100) -> 0.02076 | C145: 0.007001115012
B146: =IF(ylds!C147="", "", ylds!C147/100) -> 0.02115 | C146: 0.007001536902
B147: =IF(ylds!C148="", "", ylds!C148/100) -> 0.02149 | C147: 0.007005364461
B148: =IF(ylds!C149="", "", ylds!C149/100) -> 0.02184 | C148: 0.006996162714
B149: =IF(ylds!C150="", "", ylds!C150/100) -> 0.02124 | C149: 0.006994403072
B150: =IF(ylds!C151="", "", ylds!C151/100) -> 0.02142 | C150: 0.006974466924
B151: =IF(ylds!C152="", "", ylds!C152/100) -> 0.02163 | C151: 0.006962213526
B152: =IF(ylds!C153="", "", ylds!C153/100) -> 0.02213 | C152: 0.006975798942
B153: =IF(ylds!C154="", "", ylds!C154/100) -> 0.02243 | C153: 0.006969784745
B154: =IF(ylds!C155="", "", ylds!C155/100) -> 0.0228 | C154: 0.007005487135
B155: =IF(ylds!C156="", "", ylds!C156/100) -> 0.0216 | C155: 0.007020206939
B156: =IF(ylds!C157="", "", ylds!C157/100) -> 0.02148 | C156: 0.007045898703
B157: =IF(ylds!C158="", "", ylds!C158/100) -> 0.02151 | C157: 0.007087665519
B158: =IF(ylds!C159="", "", ylds!C159/100) -> 0.02184 | C158: 0.007088456678
B159: =IF(ylds!C160="", "", ylds!C160/100) -> 0.02287 | C159: 0.007071407914
B160: =IF(ylds!C161="", "", ylds!C161/100) -> 0.02262 | C160: 0.007058128504
B161: =IF(ylds!C162="", "", ylds!C162/100) -> 0.02081 | C161: 0.007039158139
B162: =IF(ylds!C163="", "", ylds!C163/100) -> 0.02024 | C162: 0.007155511759
B163: =IF(ylds!C164="", "", ylds!C164/100) -> 0.01973 | C163: 0.007152663932
B164: =IF(ylds!C165="", "", ylds!C165/100) -> 0.01978 | C164: 0.007133717106
B165: =IF(ylds!C166="", "", ylds!C166/100) -> 0.01973 | C165: 0.00712364765
B166: =IF(ylds!C167="", "", ylds!C167/100) -> 0.01973 | C166: 0.007106711827
B167: =IF(ylds!C168="", "", ylds!C168/100) -> 0.01936 | C167: 0.007093352112
B168: =IF(ylds!C169="", "", ylds!C169/100) -> 0.01976 | C168: 0.007126623839
B169: =IF(ylds!C170="", "", ylds!C170/100) -> 0.02059 | C169: 0.007354552142
B170: =IF(ylds!C171="", "", ylds!C171/100) -> 0.02059 | C170: 0.007342387881
B171: =IF(ylds!C172="", "", ylds!C172/100) -> 0.02072 | C171: 0.007367072784
B172: =IF(ylds!C173="", "", ylds!C173/100) -> 0.0208 | C172: 0.007348867166
B173: =IF(ylds!C174="", "", ylds!C174/100) -> 0.02079 | C173: 0.007331025517
B174: =IF(ylds!C175="", "", ylds!C175/100) -> 0.02065 | C174: 0.0075065608
B175: =IF(ylds!C176="", "", ylds!C176/100) -> 0.02069 | C175: 0.007522666169
B176: =IF(ylds!C177="", "", ylds!C177/100) -> 0.02022 | C176: 0.007545279515
B177: =IF(ylds!C178="", "", ylds!C178/100) -> 0.02068 | C177: 0.007541955548
B178: =IF(ylds!C179="", "", ylds!C179/100) -> 0.02033 | C178: 0.00758125264
B179: =IF(ylds!C180="", "", ylds!C180/100) -> 0.02073 | C179: 0.007624101736
B180: =IF(ylds!C181="", "", ylds!C181/100) -> 0.02068 | C180: 0.007609822637
B181: =IF(ylds!C182="", "", ylds!C182/100) -> 0.02093 | C181: 0.007644540467
B182: =IF(ylds!C183="", "", ylds!C183/100) -> 0.02148 | C182: 0.007627664669
B183: =IF(ylds!C184="", "", ylds!C184/100) -> 0.02109 | C183: 0.00764495941
B184: =IF(ylds!C185="", "", ylds!C185/100) -> 0.02181 | C184: 0.007627828099
B185: =IF(ylds!C186="", "", ylds!C186/100) -> 0.0212 | C185: 0.007680998774
B186: =IF(ylds!C187="", "", ylds!C187/100) -> 0.0205 | C186: 0.00766375712
B187: =IF(ylds!C188="", "", ylds!C188/100) -> 0.02127 | C187: 0.007647230445
B188: =IF(ylds!C189="", "", ylds!C189/100) -> 0.02079 | C188: 0.007651877321
B189: =IF(ylds!C190="", "", ylds!C190/100) -> 0.02092 | C189: 0.007638119234
B190: =IF(ylds!C191="", "", ylds!C191/100) -> 0.02065 | C190: 0.007621483481
B191: =IF(ylds!C192="", "", ylds!C192/100) -> 0.02061 | C191: 0.007604474263
B192: =IF(ylds!C193="", "", ylds!C193/100) -> 0.01939 | C192: 0.007587070444
B193: =IF(ylds!C194="", "", ylds!C194/100) -> 0.01895 | C193: 0.007586553744
B194: =IF(ylds!C195="", "", ylds!C195/100) -> 0.01893 | C194: 0.007569293516
B195: =IF(ylds!C196="", "", ylds!C196/100) -> 0.0186 | C195: 0.007648769972
B196: =IF(ylds!C197="", "", ylds!C197/100) -> 0.01844 | C196: 0.007705597468
B197: =IF(ylds!C198="", "", ylds!C198/100) -> 0.01818 | C197: 0.007703525225
B198: =IF(ylds!C199="", "", ylds!C199/100) -> 0.01891 | C198: 0.007691653553
B199: =IF(ylds!C200="", "", ylds!C200/100) -> 0.02055 | C199: 0.007680273285
B200: =IF(ylds!C201="", "", ylds!C201/100) -> 0.02025 | C200: 0.00766678072
B201: =IF(ylds!C202="", "", ylds!C202/100) -> 0.01952 | C201: 0.007651824132
B202: =IF(ylds!C203="", "", ylds!C203/100) -> 0.01942 | C202: 0.007638854766
... 299 more rows

Sheet ylds
B2: TAB: MARKET YIELD RATES | E2: =summary!C8 & " SERIES" -> BB- SERIES
C4: 3m Index | D4: 6m Index | E4: 1Y Index | F4: 2Y Index | G4: 3Y Index | H4: 4Y Index | I4: 5Y Index | J4: 7Y Index | K4: 8Y Index | L4: 9Y Index | M4: 10Y Index | N4: 15Y Index | O4: 20Y Index | P4: 25Y Index | Q4: 30Y Index
B5: Date | C5: 0.25 | D5: 0.5 | E5: 1 | F5: 2 | G5: 3 | H5: 4 | I5: 5 | J5: 7 | K5: 8 | L5: 9 | M5: 10 | N5: 15 | O5: 20 | P5: 25 | Q5: 30
B6: 2018-03-26 | C6: 3.066 | D6: 3.066 | E6: 3.18 | F6: 3.394 | G6: 3.802 | H6: 4.181 | I6: 4.494 | J6: 4.788 | K6: 5.302 | L6: 5.498 | M6: 5.668 | N6: 5.843 | O6: 6.578
B7: 2018-03-23 | C7: 3.038
B8: 2018-03-22 | C8: 3.013
B9: 2018-03-21 | C9: 2.992
B10: 2018-03-20 | C10: 2.965
B11: 2018-03-19 | C11: 2.958
B12: 2018-03-16 | C12: 2.93
B13: 2018-03-15 | C13: 2.892
B14: 2018-03-14 | C14: 2.881
B15: 2018-03-13 | C15: 2.853
B16: 2018-03-12 | C16: 2.829
B17: 2018-03-09 | C17: 2.848
B18: 2018-03-08 | C18: 2.834
B19: 2018-03-07 | C19: 2.863
B20: 2018-03-06 | C20: 2.821
B21: 2018-03-05 | C21: 2.837
B22: 2018-03-02 | C22: 2.828
B23: 2018-03-01 | C23: 2.802
B24: 2018-02-28 | C24: 2.775
B25: 2018-02-27 | C25: 2.774
B26: 2018-02-26 | C26: 2.782
B27: 2018-02-23 | C27: 2.808
B28: 2018-02-22 | C28: 2.793
B29: 2018-02-21 | C29: 2.737
B30: 2018-02-20 | C30: 2.743
B31: 2018-02-16 | C31: 2.772
B32: 2018-02-15 | C32: 2.756
B33: 2018-02-14 | C33: 2.813
B34: 2018-02-13 | C34: 2.818
B35: 2018-02-12 | C35: 2.811
B36: 2018-02-09 | C36: 2.76
B37: 2018-02-08 | C37: 2.744
B38: 2018-02-07 | C38: 2.707
B39: 2018-02-06 | C39: 2.665
B40: 2018-02-05 | C40: 2.66
B41: 2018-02-02 | C41: 2.598
B42: 2018-02-01 | C42: 2.604
B43: 2018-01-31 | C43: 2.603
B44: 2018-01-30 | C44: 2.602
B45: 2018-01-29 | C45: 2.599
B46: 2018-01-26 | C46: 2.545
B47: 2018-01-25 | C47: 2.475
B48: 2018-01-24 | C48: 2.535
B49: 2018-01-23 | C49: 2.515
B50: 2018-01-22 | C50: 2.496
B51: 2018-01-19 | C51: 2.46
B52: 2018-01-18 | C52: 2.456
B53: 2018-01-17 | C53: 2.491
B54: 2018-01-16 | C54: 2.429
B55: 2018-01-12 | C55: 2.432
B56: 2018-01-11 | C56: 2.412
B57: 2018-01-10 | C57: 2.456
B58: 2018-01-09 | C58: 2.406
B59: 2018-01-08 | C59: 2.319
B60: 2018-01-05 | C60: 2.323
B61: 2018-01-04 | C61: 2.406
B62: 2018-01-03 | C62: 2.364
B63: 2018-01-02 | C63: 2.435
B64: 2017-12-29 | C64: 2.414
B65: 2017-12-28 | C65: 2.404
B66: 2017-12-27 | C66: 2.496
B67: 2017-12-26 | C67: 2.516
B68: 2017-12-22 | C68: 2.475
B69: 2017-12-21 | C69: 2.495
B70: 2017-12-20 | C70: 2.401
B71: 2017-12-19 | C71: 2.452
B72: 2017-12-18 | C72: 2.483
B73: 2017-12-15 | C73: 2.472
B74: 2017-12-14 | C74: 2.42
B75: 2017-12-13 | C75: 2.398
B76: 2017-12-12 | C76: 2.391
B77: 2017-12-11 | C77: 2.418
B78: 2017-12-08 | C78: 2.33
B79: 2017-12-07 | C79: 2.394
B80: 2017-12-06 | C80: 2.366
B81: 2017-12-05 | C81: 2.363
B82: 2017-12-04 | C82: 2.379
B83: 2017-12-01 | C83: 2.353
B84: 2017-11-30 | C84: 2.373
B85: 2017-11-29 | C85: 2.389
B86: 2017-11-28 | C86: 2.306
B87: 2017-11-27 | C87: 2.349
B88: 2017-11-24 | C88: 2.359
B89: 2017-11-22 | C89: 2.335
B90: 2017-11-21 | C90: 2.305
B91: 2017-11-20 | C91: 2.297
B92: 2017-11-17 | C92: 2.35
B93: 2017-11-16 | C93: 2.281
B94: 2017-11-15 | C94: 2.372
B95: 2017-11-14 | C95: 2.255
B96: 2017-11-13 | C96: 2.23
B97: 2017-11-10 | C97: 2.172
B98: 2017-11-09 | C98: 2.138
B99: 2017-11-08 | C99: 2.015
B100: 2017-11-07 | C100: 2.046
B101: 2017-11-06 | C101: 1.974
B102: 2017-11-03 | C102: 2.005
B103: 2017-11-02 | C103: 2.003
B104: 2017-11-01 | C104: 1.965
B105: 2017-10-31 | C105: 1.965
B106: 2017-10-30 | C106: 1.999
B107: 2017-10-27 | C107: 2.039
B108: 2017-10-26 | C108: 1.987
B109: 2017-10-25 | C109: 2.032
B110: 2017-10-24 | C110: 1.944
B111: 2017-10-23 | C111: 1.898
B112: 2017-10-20 | C112: 1.91
B113: 2017-10-19 | C113: 1.947
B114: 2017-10-18 | C114: 2.019
B115: 2017-10-17 | C115: 1.989
B116: 2017-10-16 | C116: 1.971
B117: 2017-10-13 | C117: 1.961
B118: 2017-10-12 | C118: 1.981
B119: 2017-10-11 | C119: 1.979
B120: 2017-10-10 | C120: 1.967
B121: 2017-10-06 | C121: 1.994
B122: 2017-10-05 | C122: 2.012
B123: 2017-10-04 | C123: 1.985
B124: 2017-10-03 | C124: 2.016
B125: 2017-10-02 | C125: 2.013
B126: 2017-09-29 | C126: 2.036
B127: 2017-09-28 | C127: 2.025
B128: 2017-09-27 | C128: 1.998
B129: 2017-09-26 | C129: 2.062
B130: 2017-09-25 | C130: 2.069
B131: 2017-09-22 | C131: 2.072
B132: 2017-09-21 | C132: 2.045
B133: 2017-09-20 | C133: 2.013
B134: 2017-09-19 | C134: 2.056
B135: 2017-09-18 | C135: 2.011
B136: 2017-09-15 | C136: 1.939
B137: 2017-09-14 | C137: 1.979
B138: 2017-09-13 | C138: 2.066
B139: 2017-09-12 | C139: 2.053
B140: 2017-09-11 | C140: 2.089
B141: 2017-09-08 | C141: 2.102
B142: 2017-09-07 | C142: 2.052
B143: 2017-09-06 | C143: 2.084
B144: 2017-09-05 | C144: 2.07
B145: 2017-09-01 | C145: 2.033
B146: 2017-08-31 | C146: 2.076
B147: 2017-08-30 | C147: 2.115
B148: 2017-08-29 | C148: 2.149
B149: 2017-08-28 | C149: 2.184
B150: 2017-08-25 | C150: 2.124
B151: 2017-08-24 | C151: 2.142
B152: 2017-08-23 | C152: 2.163
B153: 2017-08-22 | C153: 2.213
B154: 2017-08-21 | C154: 2.243
B155: 2017-08-18 | C155: 2.28
B156: 2017-08-17 | C156: 2.16
B157: 2017-08-16 | C157: 2.148
B158: 2017-08-15 | C158: 2.151
B159: 2017-08-14 | C159: 2.184
B160: 2017-08-11 | C160: 2.287
B161: 2017-08-10 | C161: 2.262
B162: 2017-08-09 | C162: 2.081
B163: 2017-08-08 | C163: 2.024
B164: 2017-08-07 | C164: 1.973
B165: 2017-08-04 | C165: 1.978
B166: 2017-08-03 | C166: 1.973
B167: 2017-08-02 | C167: 1.973
B168: 2017-08-01 | C168: 1.936
B169: 2017-07-31 | C169: 1.976
B170: 2017-07-28 | C170: 2.059
B171: 2017-07-27 | C171: 2.059
B172: 2017-07-26 | C172: 2.072
B173: 2017-07-25 | C173: 2.08
B174: 2017-07-24 | C174: 2.079
B175: 2017-07-21 | C175: 2.065
B176: 2017-07-20 | C176: 2.069
B177: 2017-07-19 | C177: 2.022
B178: 2017-07-18 | C178: 2.068
B179: 2017-07-17 | C179: 2.033
B180: 2017-07-14 | C180: 2.073
B181: 2017-07-13 | C181: 2.068
B182: 2017-07-12 | C182: 2.093
B183: 2017-07-11 | C183: 2.148
B184: 2017-07-10 | C184: 2.109
B185: 2017-07-07 | C185: 2.181
B186: 2017-07-06 | C186: 2.12
B187: 2017-07-05 | C187: 2.05
B188: 2017-07-03 | C188: 2.127
B189: 2017-06-30 | C189: 2.079
B190: 2017-06-29 | C190: 2.092
B191: 2017-06-28 | C191: 2.065
B192: 2017-06-27 | C192: 2.061
B193: 2017-06-26 | C193: 1.939
B194: 2017-06-23 | C194: 1.895
B195: 2017-06-22 | C195: 1.893
B196: 2017-06-21 | C196: 1.86
B197: 2017-06-20 | C197: 1.844
B198: 2017-06-19 | C198: 1.818
B199: 2017-06-16 | C199: 1.891
B200: 2017-06-15 | C200: 2.055
B201: 2017-06-14 | C201: 2.025
B202: 2017-06-13 | C202: 1.952
... 111 more rows

Sheet sample
B2: TAB: OPTION CALCULATION FOR A SAMPLE OF BONDS/NOTES
B4: Assumptions: | K4: Parameters
B5: 1 | C5: The same interest rate tree (same volatility and other parameters) is used for each option calulation | K5: maturity term | M5: =summary!C9 -> 5 | N5: Bond sample parameters | Q5: =_xll.AC.data.listmap(K12:M12, OFFSET(K13, 0, 0, D10, 3), 0) -> java.util.ArrayList@Thu, 7 Feb 2019 12:29:29:981..4187034038671082771 | S5: =_xll.AC.data.size(Q5, 1) -> 10
B6: 2 | C6: The coupon rate and coupon frequency of the Covered Transaction are used for each option calculation | K6: annuity adjustment | M6: =summary!H11 -> 4.449506278 | N6: Bond sample prices | Q6: =_xll.AC.finance.srm.get(tree!I28, config!B23, ) -> java.util.ArrayList@Thu, 7 Feb 2019 12:29:30:659..4638517000317937004 | S6: =_xll.AC.data.size(Q6, 1) -> 10
B7: 3 | C7: Effectively terms of each bond in the sample are adjusted to the terms of Covered Transaction but assumed | K7: Valuation Date | M7: =summary!C7 -> 2019-01-01
C8: to have bond-specific prepayment penalty structure | K8: =config!B64 -> option | M8: =config!G44 -> call
N9: Covered Transaction premium | R9: =summary!H12 -> 0.213174552
B10: Bloomberg Data | D10: =COUNTA(D13:D1000) -> 10 | I10: Derived Data | S10: Input for IRB template
B11: # | C11: Ticker | D11: Issuer Name | E11: Maturity Date | F11: Make-Whole Termination Date | G11: Redemption Premium, in % | I11: Remaining Tenor | K11: Make-Whole Remaining Duration | M11: =G11 -> Redemption Premium, in % | N11: Bond Bullet Price | O11: Bond Price | P11: Option Price | Q11: Annuity Adjustment Factor | R11: Option Premium / Discount | S11: Negative of Option Price
G12: % | I12: tenor, years | J12: MWC years | K12: =config!B16 -> make-whole-duration | L12: penalty slope | M12: =config!B17 -> redemption-premium-post-make-whole | N12: % of par | O12: % of par | P12: % of par | Q12: years | R12: bps | S12: %
B13: 1 | C13: EK775769 Corp | D13: CDW LLC/CDW FINANCE | E13: 2023-09-01 | F13: 2018-03-01 | G13: 0.0375 | I13: =IF($C13="", "", (E13-$M$7)/365.25) -> 4.665297741 | J13: =IF($C13="", "", IF(F13<=$M$7, 0, (F13-$M$7)/365.25)) -> 0 | K13: =IF(C13="", "", IF(OR(F13="", F13<=$M$7), 0, ($M$5/I13)*(F13-$M$7)/365.25)) -> 0 | L13: =IF(C13="", "", IF(I13=J13, 0, G13/(I13-J13))) -> 0.008038072183 | M13: =IF(C13="", "",L13*($M$5-K13)) -> 0.04019036092 | N13: =_xll.AC.data._get(Q6, "", 0) -> -99.81767392 | O13: -99.65613376 | P13: =IF(C13="", "", O13-N13) -> 0.1615401538 | Q13: =IF(C13="", "", $M$6) -> 4.449506278 | R13: =IF(C13="", "", P13/Q13) -> 0.03630518617 | S13: =IF(P13="", "", -P13) -> -0.1615401538
B14: =IF(C14="", "", B13+1) -> 2 | C14: EK623646 Corp | D14: CDW LLC/CDW FINANCE | E14: 2024-12-01 | F14: 2024-06-01 | G14: 0 | I14: =IF(C14="", "", (E14-$M$7)/365.25) -> 5.916495551 | J14: 5.415468857 | K14: 4.576584914 | L14: 0 | M14: 0 | N14: -99.81767392 | O14: -99.76194692 | P14: 0.05572699991 | Q14: 4.449506278 | R14: 0.01252431088 | S14: =IF(P14="", "", -P14) -> -0.05572699991
B15: =IF(C15="", "", B14+1) -> 3 | C15: JK984281 Corp | D15: PTC INC | E15: 2024-05-15 | F15: 2019-05-15 | G15: 0.045 | I15: 5.368925394 | J15: 0.3668720055 | K15: 0.3416624171 | L15: 0.008996305419 | M15: 0.04190782764 | N15: -99.81767392 | O15: -99.67630049 | P15: 0.141373422 | Q15: 4.449506278 | R15: 0.03177283347 | S15: -0.141373422
B16: 4 | C16: LW445537 Corp | D16: NUANCE COMMUNICATIONS | E16: 2024-07-01 | F16: 2019-07-01 | G16: 0.045 | I16: 5.497604381 | J16: 0.4955509925 | K16: 0.4506972112 | L16: 0.008996305419 | M16: 0.04092691733 | N16: -99.81767392 | O16: -99.6713396 | P16: 0.1463343113 | Q16: 4.449506278 | R16: 0.03288776376 | S16: -0.1463343113
B17: 5 | C17: EK884818 Corp | D17: MICRON TECHNOLOGY INC | E17: 2024-01-15 | F17: 2018-05-01 | G17: 0.03938 | I17: 5.037645448 | J17: 0 | K17: 0 | L17: 0.007817144022 | M17: 0.03908572011 | N17: -99.81767392 | O17: -99.64821217 | P17: 0.1694617449 | Q17: 4.449506278 | R17: 0.03808551653 | S17: -0.1694617449
B18: 6 | C18: EK281889 Corp | D18: COMMSCOPE INC | E18: 2021-06-15 | F18: 2017-06-15 | G18: 0.025 | I18: 2.453114305 | J18: 0 | K18: 0 | L18: 0.01019112723 | M18: 0.05095563616 | N18: -99.81767392 | O18: -99.70676778 | P18: 0.1109061313 | Q18: 4.449506278 | R18: 0.02492549159 | S18: -0.1109061313
B19: 7 | C19: EK281901 Corp | D19: COMMSCOPE INC | E19: 2024-06-15 | F19: 2019-06-15 | G19: 0.0275 | I19: 5.453798768 | J19: 0.4517453799 | K19: 0.4141566265 | L19: 0.0054977422 | M19: 0.02521178464 | N19: -99.81767392 | O19: -99.52160817 | P19: 0.2960657457 | Q19: 4.449506278 | R19: 0.06653901066 | S19: -0.2960657457
B20: 8 | C20: EK477772 Corp | D20: AMSTED INDUSTRIES | E20: 2024-09-15 | F20: 2019-09-15 | G20: 0.02688 | I20: 5.70568104 | J20: 0.7036276523 | K20: 0.6166026871 | L20: 0.005373793103 | M20: 0.02355547025 | N20: -99.81767392 | O20: -99.51807419 | P20: 0.2995997245 | Q20: 4.449506278 | R20: 0.06733325134 | S20: -0.2995997245
B21: 9 | C21: EK614026 Corp | D21: MOOG INC | E21: 2022-12-01 | F21: 2017-12-01 | G21: 0 | I21: 3.915126626 | J21: 0 | K21: 0 | L21: 0 | M21: 0 | N21: -99.81767392 | O21: -98.97449194 | P21: 0.8431819752 | Q21: 4.449506278 | R21: 0.1895001204 | S21: -0.8431819752
B22: 10 | C22: EK106995 Corp | D22: AMSTED INDUSTRIES | E22: 2022-03-15 | F22: 2018-03-15 | G22: 0.02 | I22: 3.20054757 | J22: 0 | K22: 0 | L22: 0.00624893071 | M22: 0.03124465355 | N22: -99.81767392 | O22: -99.57651739 | P22: 0.2411565288 | Q22: 4.449506278 | R22: 0.05419849165 | S22: -0.2411565288
Q37: =IF(C37="", "", tree!$K$37) -> 
Q38: =IF(C38="", "", tree!$K$37) -> 

Sheet tree
B2: TAB: INTEREST RATE TREE PARAMETERS
B4: Interest rate process | H4: Interest rate calculator
B6: Process parameters | H6: Calculator parameters
B7: State parameter | C7: Value | F7: Description | H7: Calculator option parameter | I7: Value | K7: Description
B8: =config!B51 -> maturity | C8: =summary!C9 -> 5 | F8: =summary!D9 -> Bond maturity term | H8: =config!B64 -> option | I8: =summary!L6 -> call | K8: =config!C64 -> Evaluated option (put or call)
B9: =config!B9 -> dt | C9: =summary!C12 -> 0.25 | F9: =summary!D12 -> Length of the tree step (in years) | H9: =config!B65 -> adjust-to-par | I9: 1 | K9: =config!C65 -> Set to 1 if coupon rate is adjusted so that the bullet price equals to par
B10: =config!B52 -> state-initial | C10: =params!G22 -> 0.03066 | F10: Interest rate process initial state (MYCA 3-months rate)
B11: =config!B54 -> tree-states | C11: =_xll.AC.data.map(B12:B17, C12:C17) -> java.util.LinkedHashMap@Thu, 7 Feb 2019 12:29:29:960..4263840712535875705 | F11: Parameters applied to construct the tree states
B12: dx-down | C12: =VLOOKUP(summary!$C$6, config!$G$38:$J$41, 3, FALSE) -> 3 | F12: Normalized downward change in state over dt period (xmin = E xT - ΣT x dxdown)
B13: dx-up | C13: =VLOOKUP(summary!$C$6, config!$G$38:$J$41, 4, FALSE) -> 3 | F13: Normalized upward change in state over dt period (xmax = E xT + ΣT x dxup)
B14: X-min | C14: =IF(I17, 0.01%, -10%) -> -0.1 | F14: Lower boundary on minimum state value
B15: X-max | C15: 0.2 | F15: Upper boundary on maximum state value
B16: X-count | C16: 20 | F16: Number of process discrete states {xt} | H16: Is constant drift | I16: =OR(summary!C6=summary!B33, summary!C6=summary!B34) -> FALSE | K16: True if this is a Vasicek or CIR and false otherwise
B17: iter-count | C17: 10 | F17: Number of iterations used to construct σ(T, x) - uniform set of states in period T | H17: Is CIR model | I17: =OR(summary!C6=summary!B34, summary!C6=summary!B36) -> FALSE | K17: True if this id CIR or Hull-White (extended CIR) model
B19: Process parameter | C19: Value | F19: Description | H19: Calculator option executed methods | K19: =K7 -> Description
B20: =config!B29 -> srm-name | C20: =summary!C6 -> Hull-White, extended Vasicek | F20: Estimated short-rate model | H20: =config!G49 -> value-option | K20: =config!J49 -> Estimate the bond bullet prices and prices in the presence of the option
B21: =config!B34 -> drift-function | C21: =params!G14 -> java.util.LinkedHashMap@Thu, 7 Feb 2019 12:29:30:094..1200399959172200018 | F21: Drift function parameter, ϑ(t)
B22: =config!B31 -> volatility | C22: =summary!C15 -> 0.007588771271 | F22: Standard deviation parameter, σ | H22: =cf!F24 -> Bond calculator parameters | K22: =cf!B24 -> java.util.LinkedHashMap@Thu, 7 Feb 2019 12:39:22:689..6453240946910574710 | N22: =_xll.AC.data.size(K22, 1) -> 13
B23: =config!B35 -> mean-reversion | C23: =summary!C14 -> 1e-06 | F23: Diffusion mean reversion parameter, α
B24: gamma | C24: =SQRT(C23*C23 + 2*C22*C22) -> 0.0107321433 | F24: Diffusion heteroscedasticity parameter, γ | H24: Sample bond parameters | K24: =sample!Q5 -> java.util.ArrayList@Thu, 7 Feb 2019 12:29:29:981..4187034038671082771 | N24: =_xll.AC.data.size(K24, 1) -> 10
H25: =H8 -> option | K25: =sample!M8 -> call
B27: SRM tree object | C27: =_xll.AC.finance.srm.tree("", _xll.AC.data.map(B8:B11, C8:C11), _xll.AC.data.map(B20:B24, C20:C24), _xll.AC.data.map(B36:B39, C36:C39)) -> jeconkr.finance.HW.Derivatives2003.lib.ch23_srm.ShortRateModel@Thu, 7 Feb 2019 12:39:22:720..5110244698924568862 | H27: SRM calculator object | I27: =_xll.AC.finance.srm.calc("", C27, C28, K22, _xll.AC.data.map(H8:H9, I8:I9), _xll.AC.data.list_x(H20, 0, 1)) -> jeconkr.finance.HW.Derivatives2003.lib.ch23_srm.calculator.CalculatorSRM@Thu, 7 Feb 2019 12:39:22:720..2603566558598886960
B28: SRM parameter calculator | C28: =params!I51 -> jeconkr.finance.HW.Derivatives2003.lib.ch23_srm.calculator.parameter.CalculatorParameterHullWhiteVasicek@Thu, 7 Feb 2019 12:39:22:689..2858042582443769890 | H28: SRM sample calculator object | I28: =_xll.AC.finance.srm.samplecalc(I27, K24, _xll.AC.data.map(H25:H25, K25:K25), _xll.AC.data.list_x(H20:H20, 0, 1)) -> jeconkr.finance.HW.Derivatives2003.lib.ch23_srm.calculator.CalculatorSampleSRM@Thu, 7 Feb 2019 12:39:22:739..6019136525918125904
H29: SRM calculator validator | I29: =_xll.AC.finance.srm.validate.run(C20, params!I51, I27) -> jeconkr.finance.HW.Derivatives2003.lib.ch23_srm.calculator.validate.ValidatorHullWhiteVasicek@Thu, 7 Feb 2019 12:39:22:720..7545678515393836339
B32: Parameter | D32: Value | F32: Description | H32: Parameter | K32: =C19 -> Value | L32: =F19 -> Description
B33: Avg standrad deviation | C33: =IF(I17, summary!C15*SQRT(C10), summary!C15) -> 0.007588771271 | D33: =IF(I17, summary!C15*SQRT(I42), summary!C15) -> 0.007588771271 | F33: Average standard deviation over the process mean path | H33: Annuity adjustment factor
H34: First period duration | K34: =summary!C9 - INT(summary!C9*summary!C11)/summary!C11 -> 0
B35: Transition probability structure | H35: Remaining period duration | K35: =summary!C9-K34 -> 5
B36: =config!B46 -> Q-adjustment | C36: 1 | F36: Set to 1 if the tree probabilities are adjusted to match drift and volatility values | H36: First period discount factor | K36: =1/(1+summary!C10/summary!C11)^(K34*summary!C11) -> 1
B37: =config!B48 -> Q-lambda | C37: 1 | F37: =config!C48 -> Adjust negative values in transition probabilities | H37: Annuity adjustment factor | K37: =K36 * (K34/summary!C11 + (1 - 1/(1+summary!C10/summary!C11)^(K35*summary!C11))/summary!C10) -> 4.449506278 | L37: Deterministic annuity-adjustment factor
B38: =config!B47 -> Q-rho | C38: 1 | F38: =config!C47 -> Parameter applied in the transition probability adjustment | H38: =config!G62 -> annuity-adjustment-factor | K38: =_xll.AC.finance.srm.get($I$27, H38, ) -> 2.807309021 | L38: =config!J62 -> Tree-based annuity adjustment based on constant function
B39: Use tree structure | C39: 0 | F39: Set to 1 if the above tree structure is used (otherwise, normal approximation is applied) | H39: =config!G63 -> annuity-adjustment-factor-constant | K39: =_xll.AC.finance.srm.get($I$27, H39, ) -> 4.645048543 | L39: =config!J63 -> Tree-based annuity adjustment based on option non-exercised indicator function
H40: Process Summary
B41: Movement direction | C41: ai | D41: pi | F41: Restrictions on the mapping coefficients | H41: =_xll.AC.finance.srm.get(tree!I27, config!B60) -> process-state-count | I41: 21 | L41: =F16 -> Number of process discrete states {xt}
B42: up | C42: =SQRT(3) -> 1.732050808 | D42: =1/6 -> 0.1666666667 | F42: Σ ai2 x pi = 1 | H42: mean-terminal | I42: 0.06470051272 | L42: Process mean at maturity
B43: zero | C43: 0 | D43: =1-D42-D44 -> 0.6666666667 | F43: Σ pi = 1 | H43: stdev-terminal | I43: 0.01687719676 | L43: Process standard deviation at maturity
B44: down | C44: =-C42 -> -1.732050808 | D44: =D42 -> 0.1666666667 | H44: Bond price (dirty/full) | I44: -99.05147849 | L44: Bond price that takes into account the presence of the option
H45: Bond price bullet (dirty/full) | I45: -100 | L45: Bullet bond price
B46: Q tree structure | F46: =_xll.AC.data.map( C42:C44, D42:D44) -> java.util.LinkedHashMap@Thu, 7 Feb 2019 12:29:29:960..6673660391685186079

Sheet cf
B2: TAB: BOND INTEREST AND PRINCIPAL PAYMENTS CASH FLOWS
B4: Bond cash flows inputs | J4: Bond cash flows output
B6: Parameter | C6: Value | F6: Description | J6: period | K6: time | L6: principal outstanding | M6: principal paid | N6: interest accrued | O6: interest paid | P6: Total amount paid | Q6: Redemption value | R6: Coupon base | S6: Principal base
B7: =config!B10 -> period-start | C7: 0 | J7: 0 | K7: =IF(J7="", "", J7*$C$14) -> 0 | L7: =_xll.AC.data._get(B26, "", 0) -> 100 | M7: 0 | N7: 0 | O7: 0 | P7: 0 | Q7: 100 | R7: 0 | S7: 0
B8: =summary!B9 -> maturity term | C8: =summary!C9 -> 5 | F8: Bond maturity in years | J8: =IF(J7="", "", IF(J7+1>$C$10, "", J7+1)) -> 1 | K8: 0.25 | L8: 100 | M8: 0 | N8: 1.08952684 | O8: 0 | P8: 0 | Q8: 101.0895268 | R8: 0 | S8: 0
B9: =config!B11 -> period-maturity | C9: =INT(C8/C14) -> 20 | F9: Bond maturity estimated in the numebr of periods | J9: 2 | K9: 0.5 | L9: 100 | M9: 0 | N9: 2.179053679 | O9: 2.179053679 | P9: 2.179053679 | Q9: 102.1790537 | R9: 50 | S9: 0
B10: =config!B12 -> period-end | C10: =C9 -> 20 | F10: Cash flow values are set to 0 after bond maturity | J10: 3 | K10: 0.75 | L10: 100 | M10: 0 | N10: 1.08952684 | O10: 0 | P10: 0 | Q10: 101.0895268 | R10: 0 | S10: 0
B11: =config!B8 -> principal-amount | C11: =summary!C16 -> 100 | F11: =summary!D16 -> Bond principal amount | J11: 4 | K11: 1 | L11: 100 | M11: 0 | N11: 2.179053679 | O11: 2.179053679 | P11: 2.179053679 | Q11: 102.1790537 | R11: 50 | S11: 0
B12: =config!B14 -> coupon-rate | C12: =_xll.AC.math.F1.map(C8, , params!I41, 0) -> 0.04494 | F12: Coupon rate (based on yield term structure rate with matching maturity) | J12: 5 | K12: 1.25 | L12: 100 | M12: 0 | N12: 1.08952684 | O12: 0 | P12: 0 | Q12: 101.0895268 | R12: 0 | S12: 0
B13: =config!B15 -> coupon-frequency | C13: =summary!C11 -> 2 | F13: =summary!D11 -> Coupon payment frequency | J13: 6 | K13: 1.5 | L13: 100 | M13: 0 | N13: 2.179053679 | O13: 2.179053679 | P13: 2.179053679 | Q13: 102.1790537 | R13: 50 | S13: 0
B14: =config!B9 -> dt | C14: =summary!C12 -> 0.25 | F14: =summary!D12 -> Length of the tree step (in years) | J14: 7 | K14: 1.75 | L14: 100 | M14: 0 | N14: 1.08952684 | O14: 0 | P14: 0 | Q14: 101.0895268 | R14: 0 | S14: 0
B15: =config!B21 -> interest-deferral-period | C15: =summary!L34 -> 0 | F15: Period of first interest payment (if different from regular period) | J15: 8 | K15: 2 | L15: 100 | M15: 0 | N15: 2.179053679 | O15: 2.179053679 | P15: 2.179053679 | Q15: 102.1790537 | R15: 50 | S15: 0
B16: =config!B22 -> is-interest-compound | C16: =summary!L35 -> 1 | F16: Indicator of compounded interest | J16: 9 | K16: 2.25 | L16: 100 | M16: 0 | N16: 1.08952684 | O16: 0 | P16: 0 | Q16: 101.0895268 | R16: 0 | S16: 0
B17: =config!B20 -> amortization-schedule | C17: =summary!J29 -> java.util.LinkedHashMap@Thu, 7 Feb 2019 12:29:29:984..1286073431040083501 | F17: =summary!M29 -> Bond amortization schedule | J17: 10 | K17: 2.5 | L17: 100 | M17: 0 | N17: 2.179053679 | O17: 2.179053679 | P17: 2.179053679 | Q17: 102.1790537 | R17: 50 | S17: 0
B18: =config!B18 -> redemption-premium-schedule | C18: =summary!J15 -> java.util.LinkedHashMap@Thu, 7 Feb 2019 12:29:29:944..4617911987091833777 | F18: Bond redemption penalty schedule | J18: 11 | K18: 2.75 | L18: 100 | M18: 0 | N18: 1.08952684 | O18: 0 | P18: 0 | Q18: 101.0895268 | R18: 0 | S18: 0
B19: =config!B17 -> redemption-premium-post-make-whole | C19: 0 | F19: Bond redemption penalty on the make-wholetermination date | J19: 12 | K19: 3 | L19: 100 | M19: 0 | N19: 2.179053679 | O19: 2.179053679 | P19: 2.179053679 | Q19: 102.1790537 | R19: 50 | S19: 0
J20: 13 | K20: 3.25 | L20: 100 | M20: 0 | N20: 1.08952684 | O20: 0 | P20: 0 | Q20: 101.0895268 | R20: 0 | S20: 0
B21: =config!G61 -> coupon-par | C21: =_xll.AC.finance.srm.get(tree!I27, B21, ) -> 0.04358107358 | F21: =config!J61 -> Calibrated coupon rate such that bond bullet value is adjusted to par | J21: 14 | K21: 3.5 | L21: 100 | M21: 0 | N21: 2.179053679 | O21: 2.179053679 | P21: 2.179053679 | Q21: 102.1790537 | R21: 50 | S21: 0
B22: Difference between MYCA an dpar rates | C22: =C21-C12 -> -0.001358926419 | J22: 15 | K22: 3.75 | L22: 100 | M22: 0 | N22: 1.08952684 | O22: 0 | P22: 0 | Q22: 101.0895268 | R22: 0 | S22: 0
J23: 16 | K23: 4 | L23: 100 | M23: 0 | N23: 2.179053679 | O23: 2.179053679 | P23: 2.179053679 | Q23: 102.1790537 | R23: 50 | S23: 0
B24: =_xll.AC.data.map(B7:B19, C7:C19) -> java.util.LinkedHashMap@Thu, 7 Feb 2019 12:39:22:689..6453240946910574710 | C24: =_xll.AC.data.size(B24, 1) -> 13 | F24: Bond calculator parameters | J24: 17 | K24: 4.25 | L24: 100 | M24: 0 | N24: 1.08952684 | O24: 0 | P24: 0 | Q24: 101.0895268 | R24: 0 | S24: 0
B25: =_xll.AC.finance.srm.get(tree!I27, config!B24, ) -> java.util.LinkedHashMap@Thu, 7 Feb 2019 12:29:30:565..2889352392129758039 | C25: =_xll.AC.data.size(B25, 1) -> 21 | F25: Bond cash flows | J25: 18 | K25: 4.5 | L25: 100 | M25: 0 | N25: 2.179053679 | O25: 2.179053679 | P25: 2.179053679 | Q25: 102.1790537 | R25: 50 | S25: 0
B26: =_xll.AC.finance.cf.get(B25, "", ) -> java.util.ArrayList@Thu, 7 Feb 2019 12:29:30:659..2919906023843306217 | C26: =_xll.AC.data.size(B26, 1) -> 21 | D26: =_xll.AC.data.size(B26, 2) -> 8 | F26: Bond cash flows converted into an array | J26: 19 | K26: 4.75 | L26: 100 | M26: 0 | N26: 1.08952684 | O26: 0 | P26: 0 | Q26: 101.0895268 | R26: 0 | S26: 0
J27: 20 | K27: 5 | L27: 100 | M27: 100 | N27: 2.179053679 | O27: 2.179053679 | P27: 102.1790537 | Q27: 102.1790537 | R27: 50 | S27: 100
K39: =IF(J39="", "", J39*$C$14) -> 
J40: =IF(J39="", "", IF(J39+1>$C$10, "", J39+1)) -> 
K71: =IF(J71="", "", J71*$C$14) -> 

Sheet charts
B2: TAB: CHARTS
B4: State distribution at maturity | F4: Option exercise action switch state | N4: Charts
B6: number of periods | D6: =cf!C9+1 -> 21 | F6: Mean: | G6: =SUMPRODUCT(C10:C198, D10:D198) -> 0.06470051272 | I6: =summary!B12 -> dt | J6: =summary!C12 -> 0.25
B7: number of observations | D7: =tree!C16 -> 20 | F7: StDev: | G7: =SQRT(SUMPRODUCT(C10:C198, C10:C198, D10:D198) - G6*G6) -> 0.01687719676
B9: # | C9: state | D9: prob | F9: period (years) | G9: period (index) | H9: action switch state | I9: =validate!M10 -> mean - numeric | J9: coupon rate | K9: min state | L9: max state
B10: 1 | C10: =_xll.AC.stats.markov.getCalc(tree!I27, config!B59, charts!N43) -> 0.002971802781 | D10: 0.0001664797031 | G10: =_xll.AC.stats.markov.ctrl.getCalc(tree!I27, config!B58) ->  | I10: =validate!M11 -> 0.03066 | J10: =summary!C10 -> 0.04358107358 | K10: =_xll.AC.stats.markov.getCalc(tree!I27, config!B55) -> 0.03066 | L10: 0.03066
B11: =IF(B10>=$D$7, "", B10+1) -> 2 | C11: 0.008509442225 | D11: 0.0005117754672 | F11: =IF(G11="", "", G11*$J$6) -> 0.25 | G11: 1 | H11: 0.03066 | I11: =IF(G11="", "", validate!M12) -> 0.03066596154 | J11: =IF(I11="", "", $J$10) -> 0.04358107358 | K11: 1e-06 | L11: 0.04173527889
B12: =IF(B11>=$D$7, "", B11+1) -> 3 | C12: 0.01404708167 | D12: 0.001517501937 | F12: 0.5 | G12: 2 | H12: 0.02512236056 | I12: =IF(G12="", "", validate!M13) -> 0.03067192307 | J12: =IF(I12="", "", $J$10) -> 0.04358107358 | K12: 1e-06 | L12: 0.05281055778
B13: 4 | C13: 0.01958472111 | D13: 0.00379865895 | F13: 0.75 | G13: 3 | H13: 0.03066 | I13: =IF(G13="", "", validate!M14) -> 0.03295994921 | J13: 0.04358107358 | K13: 1e-06 | L13: 0.06942347611
B14: 5 | C14: 0.02512236056 | D14: 0.008545349332 | F14: 1 | G14: 4 | H14: 0.03066 | I14: =IF(G14="", "", validate!M15) -> 0.03524797847 | J14: 0.04358107358 | K14: 1e-06 | L14: 0.08603639444
B15: 6 | C15: 0.03066 | D15: 0.01734455047 | F15: 1.25 | G15: 5 | H15: 0.03066 | I15: =IF(G15="", "", validate!M16) -> 0.03569731631 | J15: 0.04358107358 | K15: 1e-06 | L15: 0.1026493128
B16: 7 | C16: 0.03619763944 | D16: 0.03167095853 | F16: 1.5 | G16: 6 | H16: 0.03066 | I16: =IF(G16="", "", validate!M17) -> 0.0361468598 | J16: 0.04358107358 | K16: 1e-06 | L16: 0.1081869522
B17: 8 | C17: 0.04173527889 | D17: 0.05198419031 | F17: 1.75 | G17: 7 | H17: 0.03066 | I17: =IF(G17="", "", validate!M18) -> 0.03659685445 | J17: 0.04358107358 | K17: 1e-06 | L17: 0.1081869522
B18: 9 | C18: 0.04727291833 | D18: 0.07670804015 | F18: 2 | G18: 8 | H18: 0.03066 | I18: =IF(G18="", "", validate!M19) -> 0.03704757561 | J18: 0.04358107358 | K18: 1e-06 | L18: 0.1081869522
B19: 10 | C19: 0.05281055778 | D19: 0.101762338 | F19: 2.25 | G19: 9 | H19: 0.03066 | I19: =IF(G19="", "", validate!M20) -> 0.04170712387 | J19: 0.04358107358 | K19: 1e-06 | L19: 0.1081869522
B20: 11 | C20: 0.05834819722 | D20: 0.1213638683 | F20: 2.5 | G20: 10 | H20: 0.03619763944 | I20: =IF(G20="", "", validate!M21) -> 0.0463666624 | J20: 0.04358107358 | K20: 1e-06 | L20: 0.1081869522
B21: 12 | C21: 0.06388583666 | D21: 0.1301120154 | F21: 2.75 | G21: 11 | H21: 0.04173527889 | I21: =IF(G21="", "", validate!M22) -> 0.05102619085 | J21: 0.04358107358 | K21: 1e-06 | L21: 0.1081869522
B22: 13 | C22: 0.06942347611 | D22: 0.1253834792 | F22: 3 | G22: 12 | H22: 0.04727291833 | I22: =IF(G22="", "", validate!M23) -> 0.05568564334 | J22: 0.04358107358 | K22: 1e-06 | L22: 0.1081869522
B23: 14 | C23: 0.07496111555 | D23: 0.1086004075 | F23: 3.25 | G23: 13 | H23: 0.04173527889 | I23: =IF(G23="", "", validate!M24) -> 0.05461748618 | J23: 0.04358107358 | K23: 1e-06 | L23: 0.1081869522
B24: 15 | C24: 0.08049875499 | D24: 0.08454175636 | F24: 3.5 | G24: 14 | H24: 0.04173527889 | I24: =IF(G24="", "", validate!M25) -> 0.05354941725 | J24: 0.04358107358 | K24: 1e-06 | L24: 0.1081869522
B25: 16 | C25: 0.08603639444 | D25: 0.05915110953 | F25: 3.75 | G25: 15 | H25: 0.04173527889 | I25: =IF(G25="", "", validate!M26) -> 0.05248155274 | J25: 0.04358107358 | K25: 1e-06 | L25: 0.1081869522
B26: 17 | C26: 0.09157403388 | D26: 0.03725853136 | F26: 4 | G26: 16 | H26: 0.04173527889 | I26: =IF(G26="", "", validate!M27) -> 0.05141407822 | J26: 0.04358107358 | K26: 1e-06 | L26: 0.1081869522
B27: 18 | C27: 0.09711167333 | D27: 0.02122328959 | F27: 4.25 | G27: 17 | H27: 0.04173527889 | I27: =IF(G27="", "", validate!M28) -> 0.05474121114 | J27: 0.04358107358 | K27: 1e-06 | L27: 0.1081869522
B28: 19 | C28: 0.1026493128 | D28: 0.009991083409 | F28: 4.5 | G28: 18 | H28: 0.04727291833 | I28: =IF(G28="", "", validate!M29) -> 0.05806662444 | J28: 0.04358107358 | K28: 1e-06 | L28: 0.1081869522
B29: 20 | C29: 0.1081869522 | D29: 0.008364616582 | F29: 4.75 | G29: 19 | H29: 0.04727291833 | I29: =IF(G29="", "", validate!M30) -> 0.06138793021 | J29: 0.04358107358 | K29: 1e-06 | L29: 0.1081869522
F30: 5 | G30: 20 | I30: =IF(G30="", "", validate!M31) -> 0.06470051272 | J30: 0.04358107358 | K30: 1e-06 | L30: 0.1081869522
I31: =IF(G31="", "", validate!M32) -> 
I32: =IF(G32="", "", validate!M33) -> 
I33: =IF(G33="", "", validate!M34) -> 
I34: =IF(G34="", "", validate!M35) ->  | N34: Calculator and tree parameter mapping
I35: =IF(G35="", "", validate!M36) ->  | N35: key | P35: value
I36: =IF(G36="", "", validate!M37) ->  | N36: t | P36: 100
I37: =IF(G37="", "", validate!M38) ->  | N37: path-avg
I38: =IF(G38="", "", validate!M39) ->  | N38: path-stdev
I39: =IF(G39="", "", validate!M40) ->  | N39: path-pct | P39: =_xll.AC.data.list_x( P40:P41, 1, 1) -> java.util.ArrayList@Thu, 7 Feb 2019 12:29:29:944..5001414023763223656
I40: =IF(G40="", "", validate!M41) ->  | N40: Lower percentile | P40: 0.25
N41: Upper percentile | P41: 0.75
N43: =_xll.AC.data.map(N36:N39, P36:P39) -> java.util.LinkedHashMap@Thu, 7 Feb 2019 12:29:29:960..5888643970135737380 | P43: Calculator parameters mapping
C50: =IF(B50="", "", value!D47) -> 
C51: =IF(B51="", "", value!D48) -> 
C52: =IF(B52="", "", value!D49) -> 
C53: =IF(B53="", "", value!D50) -> 
C54: =IF(B54="", "", value!D51) -> 
C55: =IF(B55="", "", value!D52) -> 
C56: =IF(B56="", "", value!D53) -> 
C57: =IF(B57="", "", value!D54) -> 
C58: =IF(B58="", "", value!D55) -> 
C59: =IF(B59="", "", value!D56) -> 
C80: =IF(B80="", "", D!D77) ->  | D80: =IF(B80="", "", OFFSET(D!D77, 0, $D$6)) -> 
C81: =IF(B81="", "", D!D78) ->  | D81: =IF(B81="", "", OFFSET(D!D78, 0, $D$6)) -> 
C82: =IF(B82="", "", D!D79) ->  | D82: =IF(B82="", "", OFFSET(D!D79, 0, $D$6)) -> 
C83: =IF(B83="", "", D!D80) ->  | D83: =IF(B83="", "", OFFSET(D!D80, 0, $D$6)) -> 
C84: =IF(B84="", "", D!D81) ->  | D84: =IF(B84="", "", OFFSET(D!D81, 0, $D$6)) -> 
C85: =IF(B85="", "", D!D82) ->  | D85: =IF(B85="", "", OFFSET(D!D82, 0, $D$6)) -> 
C86: =IF(B86="", "", D!D83) ->  | D86: =IF(B86="", "", OFFSET(D!D83, 0, $D$6)) -> 
C87: =IF(B87="", "", D!D84) ->  | D87: =IF(B87="", "", OFFSET(D!D84, 0, $D$6)) -> 
C88: =IF(B88="", "", D!D85) ->  | D88: =IF(B88="", "", OFFSET(D!D85, 0, $D$6)) -> 
C89: =IF(B89="", "", D!D86) ->  | D89: =IF(B89="", "", OFFSET(D!D86, 0, $D$6)) -> 
C90: =IF(B90="", "", D!D87) ->  | D90: =IF(B90="", "", OFFSET(D!D87, 0, $D$6)) -> 
C91: =IF(B91="", "", D!D88) ->  | D91: =IF(B91="", "", OFFSET(D!D88, 0, $D$6)) -> 
C92: =IF(B92="", "", D!D89) ->  | D92: =IF(B92="", "", OFFSET(D!D89, 0, $D$6)) -> 
C93: =IF(B93="", "", D!D90) ->  | D93: =IF(B93="", "", OFFSET(D!D90, 0, $D$6)) -> 
C94: =IF(B94="", "", D!D91) ->  | D94: =IF(B94="", "", OFFSET(D!D91, 0, $D$6)) -> 
C95: =IF(B95="", "", D!D92) ->  | D95: =IF(B95="", "", OFFSET(D!D92, 0, $D$6)) -> 
C96: =IF(B96="", "", D!D93) ->  | D96: =IF(B96="", "", OFFSET(D!D93, 0, $D$6)) -> 
C97: =IF(B97="", "", D!D94) ->  | D97: =IF(B97="", "", OFFSET(D!D94, 0, $D$6)) -> 
C98: =IF(B98="", "", D!D95) ->  | D98: =IF(B98="", "", OFFSET(D!D95, 0, $D$6)) -> 
C99: =IF(B99="", "", D!D96) ->  | D99: =IF(B99="", "", OFFSET(D!D96, 0, $D$6)) -> 
C100: =IF(B100="", "", D!D97) ->  | D100: =IF(B100="", "", OFFSET(D!D97, 0, $D$6)) -> 
C101: =IF(B101="", "", D!D98) ->  | D101: =IF(B101="", "", OFFSET(D!D98, 0, $D$6)) -> 

Sheet value
B2: Bond value in the presence of the option (full value including accrued interest)
E5: time period
B6: # | E6: 0 | F6: =E6+1 -> 1 | G6: =F6+1 -> 2 | H6: =G6+1 -> 3 | I6: 4 | J6: 5 | K6: =J6+1 -> 6 | L6: =K6+1 -> 7 | M6: =L6+1 -> 8 | N6: =M6+1 -> 9 | O6: =N6+1 -> 10 | P6: =O6+1 -> 11 | Q6: =P6+1 -> 12 | R6: =Q6+1 -> 13 | S6: =R6+1 -> 14 | T6: =S6+1 -> 15 | U6: =T6+1 -> 16 | V6: =U6+1 -> 17 | W6: =V6+1 -> 18 | X6: =W6+1 -> 19 | Y6: =X6+1 -> 20 | Z6: =Y6+1 -> 21 | AA6: =Z6+1 -> 22 | AB6: =AA6+1 -> 23 | AC6: =AB6+1 -> 24 | AD6: =AC6+1 -> 25 | AE6: =AD6+1 -> 26 | AF6: =AE6+1 -> 27 | AG6: =AF6+1 -> 28 | AH6: =AG6+1 -> 29 | AI6: =AH6+1 -> 30 | AJ6: =AI6+1 -> 31 | AK6: =AJ6+1 -> 32 | AL6: =AK6+1 -> 33 | AM6: =AL6+1 -> 34 | AN6: =AM6+1 -> 35 | AO6: =AN6+1 -> 36 | AP6: =AO6+1 -> 37 | AQ6: =AP6+1 -> 38 | AR6: =AQ6+1 -> 39 | AS6: =AR6+1 -> 40
B7: 1 | C7: state | D7: =_xll.AC.stats.markov.getCalc(tree!I27, config!B54) -> 0.002971802781 | E7: =_xll.AC.finance.srm.get( tree!I27, config!G53) ->  | H7: -101.0895268 | I7: -102.1790537 | J7: -101.0895268 | K7: -102.1790537 | L7: -101.0895268 | M7: -102.1790537 | N7: -101.0895268 | O7: -102.1790537 | P7: -101.0895268 | Q7: -102.1790537 | R7: -101.0895268 | S7: -102.1790537 | T7: -101.0895268 | U7: -102.1790537 | V7: -101.0895268 | W7: -102.1790537 | X7: -101.0895268 | Y7: -102.1790537
B8: =B7+1 -> 2 | D8: 0.008509442225 | G8: -102.1790537 | H8: -101.0895268 | I8: -102.1790537 | J8: -101.0895268 | K8: -102.1790537 | L8: -101.0895268 | M8: -102.1790537 | N8: -101.0895268 | O8: -102.1790537 | P8: -101.0895268 | Q8: -102.1790537 | R8: -101.0895268 | S8: -102.1790537 | T8: -101.0895268 | U8: -102.1790537 | V8: -101.0895268 | W8: -102.1790537 | X8: -101.0895268 | Y8: -102.1790537
B9: =B8+1 -> 3 | D9: 0.01404708167 | G9: -102.1790537 | H9: -101.0895268 | I9: -102.1790537 | J9: -101.0895268 | K9: -102.1790537 | L9: -101.0895268 | M9: -102.1790537 | N9: -101.0895268 | O9: -102.1790537 | P9: -101.0895268 | Q9: -102.1790537 | R9: -101.0895268 | S9: -102.1790537 | T9: -101.0895268 | U9: -102.1790537 | V9: -101.0895268 | W9: -102.1790537 | X9: -101.0895268 | Y9: -102.1790537
B10: 4 | D10: 0.01958472111 | F10: -101.0895268 | G10: -102.1790537 | H10: -101.0895268 | I10: -102.1790537 | J10: -101.0895268 | K10: -102.1790537 | L10: -101.0895268 | M10: -102.1790537 | N10: -101.0895268 | O10: -102.1790537 | P10: -101.0895268 | Q10: -102.1790537 | R10: -101.0895268 | S10: -102.1790537 | T10: -101.0895268 | U10: -102.1790537 | V10: -101.0895268 | W10: -102.1790537 | X10: -101.0895268 | Y10: -102.1790537
B11: 5 | D11: 0.02512236056 | F11: -101.0895268 | G11: -102.1763663 | H11: -101.0895268 | I11: -102.1790537 | J11: -101.0895268 | K11: -102.1790537 | L11: -101.0895268 | M11: -102.1790537 | N11: -101.0895268 | O11: -102.1790537 | P11: -101.0895268 | Q11: -102.1790537 | R11: -101.0895268 | S11: -102.1790537 | T11: -101.0895268 | U11: -102.1790537 | V11: -101.0895268 | W11: -102.1790537 | X11: -101.0895268 | Y11: -102.1790537
B12: 6 | D12: 0.03066 | E12: -99.05147849 | F12: -99.99624215 | G12: -100.9016259 | H12: -100.2649869 | I12: -101.7479307 | J12: -100.6289423 | K12: -101.6787451 | L12: -100.5141824 | M12: -101.4991005 | N12: -100.9684144 | O12: -102.1790537 | P12: -101.0895268 | Q12: -102.1790537 | R12: -101.0895268 | S12: -102.1790537 | T12: -101.0895268 | U12: -102.1790537 | V12: -101.0895268 | W12: -102.1790537 | X12: -101.0895268 | Y12: -102.1790537
B13: 7 | D13: 0.03619763944 | F13: -98.11983576 | G13: -99.06410929 | H13: -98.61140998 | I13: -100.3049324 | J13: -99.22081371 | K13: -100.3074675 | L13: -99.18543766 | M13: -100.2325723 | N13: -100.0413984 | O13: -101.8262774 | P13: -101.0895268 | Q13: -102.1790537 | R13: -101.0895268 | S13: -102.1790537 | T13: -101.0895268 | U13: -102.1790537 | V13: -101.0895268 | W13: -102.1790537 | X13: -101.0895268 | Y13: -102.1790537
B14: 8 | D14: 0.04173527889 | F14: -95.99857496 | G14: -97.01780837 | H14: -96.68737002 | I14: -98.51492136 | J14: -97.51077041 | K14: -98.68539474 | L14: -97.65791418 | M14: -98.80914568 | N14: -98.81951213 | O14: -100.8871828 | P14: -100.5776797 | Q14: -102.1790537 | R14: -101.0795646 | S14: -102.1494912 | T14: -101.0000323 | U14: -101.9937596 | V14: -101.0577389 | W14: -102.1790537 | X14: -101.0895268 | Y14: -102.1790537
B15: 9 | D15: 0.04727291833 | G15: -94.93156805 | H15: -94.69731123 | I15: -96.62948623 | J15: -95.72261349 | K15: -97.00003536 | L15: -96.07734389 | M15: -97.3374403 | N15: -97.48445686 | O15: -99.73166163 | P15: -99.66931965 | Q15: -101.6347889 | R15: -100.5310621 | S15: -101.6006981 | T15: -100.4581782 | U15: -101.4895279 | V15: -100.7048103 | W15: -102.0235407 | X15: -101.0577873 | Y15: -102.1790537
B16: 10 | D16: 0.05281055778 | G16: -92.86991964 | H16: -92.71750269 | I16: -94.73996025 | J16: -93.93247324 | K16: -95.31355111 | L16: -94.49552028 | M16: -95.86415687 | N16: -96.11842728 | O16: -98.49361608 | P16: -98.59030996 | Q16: -100.7753902 | R16: -99.72100136 | S16: -100.8577277 | T16: -99.80399722 | U16: -100.9519597 | V16: -100.2996746 | W16: -101.7515927 | X16: -100.9179787 | Y16: -102.1790537
B17: 11 | D17: 0.05834819722 | H17: -90.77896148 | I17: -92.88025822 | J17: -92.16868626 | K17: -93.650064 | L17: -92.93364565 | M17: -94.40815907 | N17: -94.75645602 | O17: -97.23794213 | P17: -97.45364134 | Q17: -99.78281234 | R17: -98.8223874 | S17: -100.0687849 | T17: -99.13558239 | U17: -100.4127056 | V17: -99.89013589 | W17: -101.4763219 | X17: -100.7783635 | Y17: -102.1790537
B18: 12 | D18: 0.06388583666 | H18: -88.90260166 | I18: -91.06910251 | J18: -90.44701882 | K18: -92.02267451 | L18: -91.40241693 | M18: -92.97800478 | N18: -93.41151587 | O18: -95.98993578 | P18: -96.30990028 | Q18: -98.75507655 | R18: -97.90882782 | S18: -99.27757223 | T18: -98.4695343 | U18: -99.87607446 | V18: -99.48206546 | W18: -101.201766 | X18: -100.6389415 | Y18: -102.1790537
B19: 13 | D19: 0.06942347611 | H19: -87.11409129 | I19: -89.327708 | J19: -88.78632062 | K19: -90.44739302 | L19: -89.91467711 | M19: -91.58339068 | N19: -92.08957691 | O19: -94.75773951 | P19: -95.17554048 | Q19: -97.72773226 | R19: -96.99991144 | S19: -98.49175834 | T19: -97.80785011 | U19: -99.34237846 | V19: -99.07567465 | W19: -100.9279692 | X19: -100.4997123 | Y19: -102.1790537
B20: 14 | D20: 0.07496111555 | I20: -87.68834009 | J20: -87.21841958 | K20: -88.95452817 | L20: -88.49782412 | M20: -90.24726611 | N20: -90.79906433 | O20: -93.54552239 | P20: -94.05504145 | Q20: -96.70977769 | R20: -96.09919734 | S20: -97.71231876 | T20: -97.15069399 | U20: -98.81161557 | V20: -98.67095995 | W20: -100.6549294 | X20: -100.3606758 | Y20: -102.1790537
B21: 15 | D21: 0.08049875499 | I21: -86.19350176 | J21: -85.78957043 | K21: -87.59365253 | L21: -87.20363023 | M21: -89.02127086 | N21: -89.56236938 | O21: -92.36088488 | P21: -92.9514636 | Q21: -95.7033167 | R21: -95.20754183 | S21: -96.93962257 | T21: -96.49823266 | U21: -98.28384083 | V21: -98.26791456 | W21: -100.3826446 | X21: -100.2218316 | Y21: -102.1790537
B22: 16 | D22: 0.08603639444 | I22: -84.88351102 | J22: -84.54745464 | K22: -86.42109049 | L22: -86.09878926 | M22: -87.98415433 | N22: -88.4372531 | O22: -91.22423131 | P22: -91.87203296 | Q22: -94.71079418 | R22: -94.32710474 | S22: -96.17556268 | T22: -95.85197862 | U22: -97.76002894 | V22: -97.86654839 | W22: -100.1111127 | X22: -100.0831795 | Y22: -102.1790537
B23: 17 | D23: 0.09157403388 | J23: -83.51905225 | K23: -85.47193865 | L23: -85.22862048 | M23: -87.19668363 | N23: -87.52198016 | O23: -90.19844641 | P23: -90.83550392 | Q23: -93.73935399 | R23: -93.46532314 | S23: -95.42782491 | T23: -95.21958103 | U23: -97.24728018 | V23: -97.4675972 | W23: -99.84033159 | X23: -99.94471926 | Y23: -102.1790537
B24: 18 | D24: 0.09711167333 | J24: -82.69662988 | K24: -84.74139661 | L24: -84.59109637 | M24: -86.65439779 | N24: -86.88210568 | O24: -89.40951487 | P24: -89.89544634 | Q24: -92.80703551 | R24: -92.64105755 | S24: -94.71715657 | T24: -94.62465292 | U24: -96.77214734 | V24: -97.0792066 | W24: -99.5703787 | X24: -99.80645054 | Y24: -102.1790537
B25: 19 | D25: 0.1026493128 | J25: -82.0426444 | K25: -84.18775778 | L25: -84.14412416 | M25: -86.32314631 | N25: -86.50694315 | O25: -88.94840704 | P25: -89.26065807 | Q25: -91.95965712 | R25: -91.89591247 | S25: -94.08372563 | T25: -94.11088875 | U25: -96.39049641 | V25: -96.74158 | W25: -99.31028286 | X25: -99.66837311 | Y25: -102.1790537
B26: 20 | D26: 0.1081869522 | K26: -83.7541308 | L26: -83.81193208 | M26: -86.10794095 | N26: -86.2706474 | O26: -88.67414265 | P26: -88.90042393 | Q26: -91.36720858 | R26: -91.37021538 | S26: -93.63614479 | T26: -93.75362772 | U26: -96.14641264 | V26: -96.51255933 | W26: -99.11303785 | X26: -99.5304867 | Y26: -102.1790537
B27: 21
B28: 22
B29: 23
B30: 24
B31: 25
B32: 26
B33: 27
B34: 28
B35: 29
B36: 30
B37: 31
B38: 32
B39: 33
B40: 34
B41: 35
B42: 36
B43: 37
B44: 38
B45: 39
B46: 40
B47: 41
B48: 42
B49: 43
B50: 44
B51: 45
B52: 46
B53: 47
B54: 48
B55: 49
B56: 50
B57: 51
B58: 52
B59: 53
B60: 54
B61: 55
B62: 56
B63: 57
B64: 58
B65: 59
B66: 60
B67: 61
B68: 62
B69: 63
B70: 64
B71: 65
B72: 66
B73: =B72+1 -> 67
B74: 68
B75: 69
B76: 70
B77: 71
B78: 72
B79: 73
B80: 74
B81: 75
B82: 76
B83: 77
B84: 78
B85: 79
B86: 80
B87: 81

Sheet bullet
B2: Bond value in the presence of the option (full value including accrued interest)
E5: time period
B6: # | E6: 0 | F6: =E6+1 -> 1 | G6: =F6+1 -> 2 | H6: =G6+1 -> 3 | I6: 4 | J6: 5 | K6: 6 | L6: 7 | M6: 8 | N6: 9 | O6: 10 | P6: 11 | Q6: 12 | R6: 13 | S6: 14 | T6: 15 | U6: 16 | V6: 17 | W6: 18 | X6: 19 | Y6: 20 | Z6: 21 | AA6: 22 | AB6: 23 | AC6: 24 | AD6: 25 | AE6: 26 | AF6: 27 | AG6: 28 | AH6: 29 | AI6: 30 | AJ6: 31 | AK6: 32 | AL6: =AK6+1 -> 33 | AM6: =AL6+1 -> 34 | AN6: =AM6+1 -> 35 | AO6: =AN6+1 -> 36 | AP6: =AO6+1 -> 37 | AQ6: =AP6+1 -> 38 | AR6: =AQ6+1 -> 39 | AS6: =AR6+1 -> 40
B7: 1 | C7: state | D7: =IF(value!D7="", "", value!D7) -> 0.002971802781 | E7: =_xll.AC.finance.srm.get(tree!I27, config!G54) ->  | H7: -111.3440163 | I7: -112.0641654 | J7: -110.4369443 | K7: -111.001584 | L7: -109.4202452 | M7: -110.0988597 | N7: -109.3251552 | O7: -110.5768571 | P7: -109.4514336 | Q7: -110.2357182 | R7: -108.0868825 | S7: -108.1082398 | T7: -105.9400913 | U7: -105.9395417 | V7: -104.0619148 | W7: -104.2628877 | X7: -102.1832514 | Y7: -102.1790537
B8: =B7+1 -> 2 | D8: =IF(value!D8="", "", value!D8) -> 0.008509442225 | G8: -110.8074647 | H8: -109.8084976 | I8: -110.9384678 | J8: -109.2881298 | K8: -109.7934332 | L8: -108.0726561 | M8: -108.434858 | N8: -107.8147206 | O8: -109.2536536 | P8: -108.3698802 | Q8: -109.4914806 | R8: -107.3898216 | S8: -107.4611127 | T8: -105.3394401 | U8: -105.3770981 | V8: -103.6392808 | W8: -103.9816767 | X8: -102.0418858 | Y8: -102.1790537
B9: =B8+1 -> 3 | D9: =IF(value!D9="", "", value!D9) -> 0.01404708167 | G9: -108.5369849 | H9: -107.701921 | I9: -109.0043739 | J9: -107.3963176 | K9: -107.9438646 | L9: -106.279295 | M9: -106.7796099 | N9: -106.2897849 | O9: -107.874755 | P9: -107.1601096 | Q9: -108.4970475 | R9: -106.4799548 | S9: -106.6462107 | T9: -104.6330966 | U9: -104.8139313 | V9: -103.2161614 | W9: -103.7003523 | X9: -101.9007157 | Y9: -102.1790537
B10: 4 | D10: =IF(value!D10="", "", value!D10) -> 0.01958472111 | F10: -105.6520768 | G10: -106.1691391 | H10: -105.4529313 | I10: -106.8772232 | J10: -105.3753692 | K10: -106.0414765 | L10: -104.5083789 | M10: -105.1448617 | N10: -104.7748286 | O10: -106.4882171 | P10: -105.9105204 | Q10: -107.4032472 | R10: -105.5057293 | S10: -105.8031381 | T10: -103.9297673 | U10: -104.2531329 | V10: -102.7943749 | W10: -103.419647 | X10: -101.759741 | Y10: -102.1790537
B11: 5 | D11: =IF(value!D11="", "", value!D11) -> 0.02512236056 | F11: -103.1803069 | G11: -103.8214482 | H11: -103.213463 | I11: -104.7502464 | J11: -103.3732135 | K11: -104.1693381 | L11: -102.7663773 | M11: -103.5351791 | N11: -103.2793993 | O11: -105.1138368 | P11: -104.6612542 | Q11: -106.287285 | R11: -104.5256193 | S11: -104.9639659 | T11: -103.2307516 | U11: -103.6953959 | V11: -102.3743219 | W11: -103.1397178 | X11: -101.6189612 | Y11: -102.1790537
B12: 6 | D12: =IF(value!D12="", "", value!D12) -> 0.03066 | E12: -100 | F12: -100.7583055 | G12: -101.5233725 | H12: -101.0182201 | I12: -102.662937 | J12: -101.4093377 | K12: -102.3316427 | L12: -101.0543357 | M12: -101.951231 | N12: -101.8055981 | O12: -103.756808 | P12: -103.4243851 | Q12: -105.1768007 | R12: -103.5532155 | S12: -104.1314684 | T12: -102.5364975 | U12: -103.140722 | V12: -101.9560014 | W12: -102.8605626 | X12: -101.4783763 | Y12: -102.1790537
B13: 7 | D13: =IF(value!D13="", "", value!D13) -> 0.03619763944 | F13: -98.39530726 | G13: -99.27944722 | H13: -98.87187113 | I13: -100.619564 | J13: -99.48456357 | K13: -100.5282514 | L13: -99.37206265 | M13: -100.3928029 | N13: -100.3535623 | O13: -102.4179512 | P13: -102.202218 | Q13: -104.0775626 | R13: -102.5899507 | S13: -103.3057771 | T13: -101.8469909 | U13: -102.5890947 | V13: -101.5394065 | W13: -102.5821792 | X13: -101.3379858 | Y13: -102.1790537
B14: 8 | D14: =IF(value!D14="", "", value!D14) -> 0.04173527889 | F14: -96.09234718 | G14: -97.08971551 | H14: -96.77423419 | I14: -98.61978997 | J14: -97.59835258 | K14: -98.75866284 | L14: -97.71911915 | M14: -98.85952309 | N14: -98.92303458 | O14: -101.0971692 | P14: -100.9949088 | Q14: -102.9901987 | R14: -101.6358538 | S14: -102.4868504 | T14: -101.1621998 | U14: -102.0404973 | V14: -101.1245299 | W14: -102.3045656 | X14: -101.1977896 | Y14: -102.1790537
B15: 9 | D15: =IF(value!D15="", "", value!D15) -> 0.04727291833 | G15: -94.95458499 | H15: -94.72512945 | I15: -96.66315526 | J15: -95.75024298 | K15: -97.0224439 | L15: -96.09511542 | M15: -97.35105381 | N15: -97.51371027 | O15: -99.7942325 | P15: -99.80230846 | Q15: -101.9146461 | R15: -100.690845 | S15: -101.6746333 | T15: -100.4820917 | U15: -101.4949132 | V15: -100.7113646 | W15: -102.0277196 | X15: -101.0577873 | Y15: -102.1790537
B16: 10 | D16: =IF(value!D16="", "", value!D16) -> 0.05281055778 | G16: -92.87685645 | H16: -92.7258521 | I16: -94.75001868 | J16: -93.94038868 | K16: -95.31960848 | L16: -94.49997866 | M16: -95.86727333 | N16: -96.1253256 | O16: -98.50890503 | P16: -98.62423905 | Q16: -100.8507804 | R16: -99.75483758 | S16: -100.8690706 | T16: -99.80663457 | U16: -100.9523257 | V16: -100.2999034 | W16: -101.7516391 | X16: -100.9179787 | Y16: -102.1790537
B17: 11 | D17: =IF(value!D17="", "", value!D17) -> 0.05834819722 | H17: -90.78124976 | I17: -92.8829717 | J17: -92.1706941 | K17: -93.65148875 | L17: -92.93460384 | M17: -94.40876101 | N17: -94.75780697 | O17: -97.24098503 | P17: -97.46052546 | Q17: -99.79847417 | R17: -98.82774537 | S17: -100.0701074 | T17: -99.13579633 | U17: -100.4127184 | V17: -99.89013942 | W17: -101.4763219 | X17: -100.7783635 | Y17: -102.1790537
B18: 12 | D18: =IF(value!D18="", "", value!D18) -> 0.06388583666 | H18: -88.90316477 | I18: -91.06975292 | J18: -90.44746518 | K18: -92.02296451 | L18: -91.40259296 | M18: -92.97810297 | N18: -93.41173597 | O18: -95.99043059 | P18: -96.31101625 | Q18: -98.7576024 | R18: -97.90948336 | S18: -99.27768956 | T18: -98.46954529 | U18: -99.8760747 | V18: -99.48206548 | W18: -101.201766 | X18: -100.6389415 | Y18: -102.1790537
B19: 13 | D19: =IF(value!D19="", "", value!D19) -> 0.06942347611 | H19: -87.1142147 | I19: -89.32784558 | J19: -88.78640727 | K19: -90.44744404 | L19: -89.91470477 | M19: -91.58340425 | N19: -92.08960687 | O19: -94.75780567 | P19: -95.17568653 | Q19: -97.72805424 | R19: -96.99997408 | S19: -98.49176581 | T19: -97.80785046 | U19: -99.34237846 | V19: -99.07567465 | W19: -100.9279692 | X19: -100.4997123 | Y19: -102.1790537
B20: 14 | D20: =IF(value!D20="", "", value!D20) -> 0.07496111555 | I20: -87.68836571 | J20: -87.21843426 | K20: -88.95453593 | L20: -88.49782784 | M20: -90.2472677 | N20: -90.79906775 | O20: -93.5455297 | P20: -94.05505698 | Q20: -96.70981043 | R20: -96.0992019 | S20: -97.71231908 | T20: -97.150694 | U20: -98.81161557 | V20: -98.67095995 | W20: -100.6549294 | X20: -100.3606758 | Y20: -102.1790537
B21: 15 | D21: =IF(value!D21="", "", value!D21) -> 0.08049875499 | I21: -86.19350596 | J21: -85.7895726 | K21: -87.59365355 | L21: -87.20363066 | M21: -89.02127102 | N21: -89.56236971 | O21: -92.36088555 | P21: -92.95146494 | Q21: -95.70331933 | R21: -95.20754208 | S21: -96.93962258 | T21: -96.49823266 | U21: -98.28384083 | V21: -98.26791456 | W21: -100.3826446 | X21: -100.2218316 | Y21: -102.1790537
B22: 16 | D22: =IF(value!D22="", "", value!D22) -> 0.08603639444 | I22: -84.88351162 | J22: -84.54745492 | K22: -86.42109061 | L22: -86.0987893 | M22: -87.98415434 | N22: -88.43725312 | O22: -91.22423136 | P22: -91.87203305 | Q22: -94.71079434 | R22: -94.32710475 | S22: -96.17556268 | T22: -95.85197862 | U22: -97.76002894 | V22: -97.86654839 | W22: -100.1111127 | X22: -100.0831795 | Y22: -102.1790537
B23: 17 | D23: =IF(value!D23="", "", value!D23) -> 0.09157403388 | J23: -83.51905228 | K23: -85.47193867 | L23: -85.22862048 | M23: -87.19668364 | N23: -87.52198016 | O23: -90.19844641 | P23: -90.83550392 | Q23: -93.739354 | R23: -93.46532314 | S23: -95.42782491 | T23: -95.21958103 | U23: -97.24728018 | V23: -97.4675972 | W23: -99.84033159 | X23: -99.94471926 | Y23: -102.1790537
B24: 18 | D24: =IF(value!D24="", "", value!D24) -> 0.09711167333 | J24: -82.69662989 | K24: -84.74139661 | L24: -84.59109637 | M24: -86.65439779 | N24: -86.88210568 | O24: -89.40951487 | P24: -89.89544634 | Q24: -92.80703551 | R24: -92.64105755 | S24: -94.71715657 | T24: -94.62465292 | U24: -96.77214734 | V24: -97.0792066 | W24: -99.5703787 | X24: -99.80645054 | Y24: -102.1790537
B25: 19 | D25: =IF(value!D25="", "", value!D25) -> 0.1026493128 | J25: -82.0426444 | K25: -84.18775778 | L25: -84.14412416 | M25: -86.32314631 | N25: -86.50694315 | O25: -88.94840704 | P25: -89.26065807 | Q25: -91.95965712 | R25: -91.89591247 | S25: -94.08372563 | T25: -94.11088875 | U25: -96.39049641 | V25: -96.74158 | W25: -99.31028286 | X25: -99.66837311 | Y25: -102.1790537
B26: 20 | D26: =IF(value!D26="", "", value!D26) -> 0.1081869522 | K26: -83.7541308 | L26: -83.81193208 | M26: -86.10794095 | N26: -86.2706474 | O26: -88.67414265 | P26: -88.90042393 | Q26: -91.36720858 | R26: -91.37021538 | S26: -93.63614479 | T26: -93.75362772 | U26: -96.14641264 | V26: -96.51255933 | W26: -99.11303785 | X26: -99.5304867 | Y26: -102.1790537
B27: 21 | D27: =IF(value!D27="", "", value!D27) -> 
B28: 22 | D28: =IF(value!D28="", "", value!D28) -> 
B29: 23 | D29: =IF(value!D29="", "", value!D29) -> 
B30: 24 | D30: =IF(value!D30="", "", value!D30) -> 
B31: 25 | D31: =IF(value!D31="", "", value!D31) -> 
B32: 26 | D32: =IF(value!D32="", "", value!D32) -> 
B33: 27 | D33: =IF(value!D33="", "", value!D33) -> 
B34: 28 | D34: =IF(value!D34="", "", value!D34) -> 
B35: 29 | D35: =IF(value!D35="", "", value!D35) -> 
B36: 30 | D36: =IF(value!D36="", "", value!D36) -> 
B37: 31 | D37: =IF(value!D37="", "", value!D37) -> 
B38: 32 | D38: =IF(value!D38="", "", value!D38) -> 
B39: 33 | D39: =IF(value!D39="", "", value!D39) -> 
B40: 34 | D40: =IF(value!D40="", "", value!D40) -> 
B41: 35 | D41: =IF(value!D41="", "", value!D41) -> 
B42: 36 | D42: =IF(value!D42="", "", value!D42) -> 
B43: 37 | D43: =IF(value!D43="", "", value!D43) -> 
B44: 38 | D44: =IF(value!D44="", "", value!D44) -> 
B45: 39 | D45: =IF(value!D45="", "", value!D45) -> 
B46: 40 | D46: =IF(value!D46="", "", value!D46) -> 
B47: 41 | D47: =IF(value!D47="", "", value!D47) -> 
B48: 42 | D48: =IF(value!D48="", "", value!D48) -> 
B49: 43 | D49: =IF(value!D49="", "", value!D49) -> 
B50: 44 | D50: =IF(value!D50="", "", value!D50) -> 
B51: 45 | D51: =IF(value!D51="", "", value!D51) -> 
B52: 46 | D52: =IF(value!D52="", "", value!D52) -> 
B53: 47 | D53: =IF(value!D53="", "", value!D53) -> 
B54: 48 | D54: =IF(value!D54="", "", value!D54) -> 
B55: 49 | D55: =IF(value!D55="", "", value!D55) -> 
B56: 50 | D56: =IF(value!D56="", "", value!D56) -> 
B57: 51 | D57: =IF(value!D57="", "", value!D57) -> 
B58: 52 | D58: =IF(value!D58="", "", value!D58) -> 
B59: 53 | D59: =IF(value!D59="", "", value!D59) -> 
B60: 54 | D60: =IF(value!D60="", "", value!D60) -> 
B61: 55 | D61: =IF(value!D61="", "", value!D61) -> 
B62: 56 | D62: =IF(value!D62="", "", value!D62) -> 
B63: 57 | D63: =IF(value!D63="", "", value!D63) -> 
B64: 58 | D64: =IF(value!D64="", "", value!D64) -> 
B65: 59 | D65: =IF(value!D65="", "", value!D65) -> 
B66: 60 | D66: =IF(value!D66="", "", value!D66) -> 
B67: 61 | D67: =IF(value!D67="", "", value!D67) -> 
B68: 62 | D68: =IF(value!D68="", "", value!D68) -> 
B69: 63 | D69: =IF(value!D69="", "", value!D69) -> 
B70: 64 | D70: =IF(value!D70="", "", value!D70) -> 
B71: 65 | D71: =IF(value!D71="", "", value!D71) -> 
B72: 66 | D72: =IF(value!D72="", "", value!D72) -> 
B73: =B72+1 -> 67 | D73: =IF(value!D73="", "", value!D73) -> 
B74: 68 | D74: =IF(value!D74="", "", value!D74) -> 
B75: 69 | D75: =IF(value!D75="", "", value!D75) -> 
B76: 70 | D76: =IF(value!D76="", "", value!D76) -> 
B77: 71 | D77: =IF(value!D77="", "", value!D77) -> 
B78: 72 | D78: =IF(value!D78="", "", value!D78) -> 
B79: 73 | D79: =IF(value!D79="", "", value!D79) -> 
B80: 74 | D80: =IF(value!D80="", "", value!D80) -> 
B81: 75 | D81: =IF(value!D81="", "", value!D81) -> 
B82: 76 | D82: =IF(value!D82="", "", value!D82) -> 
B83: 77 | D83: =IF(value!D83="", "", value!D83) -> 
B84: 78 | D84: =IF(value!D84="", "", value!D84) -> 
B85: 79 | D85: =IF(value!D85="", "", value!D85) -> 
B86: 80 | D86: =IF(value!D86="", "", value!D86) -> 
B87: 81 | D87: =IF(value!D87="", "", value!D87) -> 

Sheet action
B2: Option exercise action function
E5: time period
B6: # | E6: 0 | F6: =E6+1 -> 1 | G6: =F6+1 -> 2 | H6: =G6+1 -> 3 | I6: =H6+1 -> 4 | J6: =I6+1 -> 5 | K6: =J6+1 -> 6 | L6: 7 | M6: 8 | N6: 9 | O6: 10 | P6: 11 | Q6: 12 | R6: 13 | S6: 14 | T6: 15 | U6: 16 | V6: 17 | W6: 18 | X6: 19 | Y6: 20 | Z6: 21 | AA6: 22 | AB6: 23 | AC6: 24 | AD6: 25 | AE6: 26 | AF6: 27 | AG6: 28 | AH6: 29 | AI6: 30 | AJ6: 31 | AK6: 32 | AL6: =AK6+1 -> 33 | AM6: =AL6+1 -> 34 | AN6: =AM6+1 -> 35 | AO6: =AN6+1 -> 36 | AP6: =AO6+1 -> 37 | AQ6: =AP6+1 -> 38 | AR6: =AQ6+1 -> 39 | AS6: =AR6+1 -> 40
B7: 1 | C7: state | D7: =IF(value!D7="", "", value!D7) -> 0.002971802781 | E7: =_xll.AC.stats.markov.ctrl.getCalc(tree!I27, config!G57) ->  | H7: 1 | I7: 1 | J7: 1 | K7: 1 | L7: 1 | M7: 1 | N7: 1 | O7: 1 | P7: 1 | Q7: 1 | R7: 1 | S7: 1 | T7: 1 | U7: 1 | V7: 1 | W7: 1 | X7: 1 | Y7: 0
B8: =B7+1 -> 2 | D8: =IF(value!D8="", "", value!D8) -> 0.008509442225 | G8: 1 | H8: 1 | I8: 1 | J8: 1 | K8: 1 | L8: 1 | M8: 1 | N8: 1 | O8: 1 | P8: 1 | Q8: 1 | R8: 1 | S8: 1 | T8: 1 | U8: 1 | V8: 1 | W8: 1 | X8: 1 | Y8: 0
B9: 3 | D9: =IF(value!D9="", "", value!D9) -> 0.01404708167 | G9: 1 | H9: 1 | I9: 1 | J9: 1 | K9: 1 | L9: 1 | M9: 1 | N9: 1 | O9: 1 | P9: 1 | Q9: 1 | R9: 1 | S9: 1 | T9: 1 | U9: 1 | V9: 1 | W9: 1 | X9: 1 | Y9: 0
B10: 4 | D10: =IF(value!D10="", "", value!D10) -> 0.01958472111 | F10: 1 | G10: 1 | H10: 1 | I10: 1 | J10: 1 | K10: 1 | L10: 1 | M10: 1 | N10: 1 | O10: 1 | P10: 1 | Q10: 1 | R10: 1 | S10: 1 | T10: 1 | U10: 1 | V10: 1 | W10: 1 | X10: 1 | Y10: 0
B11: 5 | D11: =IF(value!D11="", "", value!D11) -> 0.02512236056 | F11: 1 | G11: 0 | H11: 1 | I11: 1 | J11: 1 | K11: 1 | L11: 1 | M11: 1 | N11: 1 | O11: 1 | P11: 1 | Q11: 1 | R11: 1 | S11: 1 | T11: 1 | U11: 1 | V11: 1 | W11: 1 | X11: 1 | Y11: 0
B12: 6 | D12: =IF(value!D12="", "", value!D12) -> 0.03066 | E12: 0 | F12: 0 | G12: 0 | H12: 0 | I12: 0 | J12: 0 | K12: 0 | L12: 0 | M12: 0 | N12: 0 | O12: 1 | P12: 1 | Q12: 1 | R12: 1 | S12: 1 | T12: 1 | U12: 1 | V12: 1 | W12: 1 | X12: 1 | Y12: 0
B13: 7 | D13: =IF(value!D13="", "", value!D13) -> 0.03619763944 | F13: 0 | G13: 0 | H13: 0 | I13: 0 | J13: 0 | K13: 0 | L13: 0 | M13: 0 | N13: 0 | O13: 0 | P13: 1 | Q13: 1 | R13: 1 | S13: 1 | T13: 1 | U13: 1 | V13: 1 | W13: 1 | X13: 1 | Y13: 0
B14: 8 | D14: =IF(value!D14="", "", value!D14) -> 0.04173527889 | F14: 0 | G14: 0 | H14: 0 | I14: 0 | J14: 0 | K14: 0 | L14: 0 | M14: 0 | N14: 0 | O14: 0 | P14: 0 | Q14: 1 | R14: 0 | S14: 0 | T14: 0 | U14: 0 | V14: 0 | W14: 1 | X14: 1 | Y14: 0
B15: 9 | D15: =IF(value!D15="", "", value!D15) -> 0.04727291833 | G15: 0 | H15: 0 | I15: 0 | J15: 0 | K15: 0 | L15: 0 | M15: 0 | N15: 0 | O15: 0 | P15: 0 | Q15: 0 | R15: 0 | S15: 0 | T15: 0 | U15: 0 | V15: 0 | W15: 0 | X15: 0 | Y15: 0
B16: 10 | D16: =IF(value!D16="", "", value!D16) -> 0.05281055778 | G16: 0 | H16: 0 | I16: 0 | J16: 0 | K16: 0 | L16: 0 | M16: 0 | N16: 0 | O16: 0 | P16: 0 | Q16: 0 | R16: 0 | S16: 0 | T16: 0 | U16: 0 | V16: 0 | W16: 0 | X16: 0 | Y16: 0
B17: 11 | D17: =IF(value!D17="", "", value!D17) -> 0.05834819722 | H17: 0 | I17: 0 | J17: 0 | K17: 0 | L17: 0 | M17: 0 | N17: 0 | O17: 0 | P17: 0 | Q17: 0 | R17: 0 | S17: 0 | T17: 0 | U17: 0 | V17: 0 | W17: 0 | X17: 0 | Y17: 0
B18: 12 | D18: =IF(value!D18="", "", value!D18) -> 0.06388583666 | H18: 0 | I18: 0 | J18: 0 | K18: 0 | L18: 0 | M18: 0 | N18: 0 | O18: 0 | P18: 0 | Q18: 0 | R18: 0 | S18: 0 | T18: 0 | U18: 0 | V18: 0 | W18: 0 | X18: 0 | Y18: 0
B19: 13 | D19: =IF(value!D19="", "", value!D19) -> 0.06942347611 | H19: 0 | I19: 0 | J19: 0 | K19: 0 | L19: 0 | M19: 0 | N19: 0 | O19: 0 | P19: 0 | Q19: 0 | R19: 0 | S19: 0 | T19: 0 | U19: 0 | V19: 0 | W19: 0 | X19: 0 | Y19: 0
B20: =B19+1 -> 14 | D20: =IF(value!D20="", "", value!D20) -> 0.07496111555 | I20: 0 | J20: 0 | K20: 0 | L20: 0 | M20: 0 | N20: 0 | O20: 0 | P20: 0 | Q20: 0 | R20: 0 | S20: 0 | T20: 0 | U20: 0 | V20: 0 | W20: 0 | X20: 0 | Y20: 0
B21: 15 | D21: =IF(value!D21="", "", value!D21) -> 0.08049875499 | I21: 0 | J21: 0 | K21: 0 | L21: 0 | M21: 0 | N21: 0 | O21: 0 | P21: 0 | Q21: 0 | R21: 0 | S21: 0 | T21: 0 | U21: 0 | V21: 0 | W21: 0 | X21: 0 | Y21: 0
B22: 16 | D22: =IF(value!D22="", "", value!D22) -> 0.08603639444 | I22: 0 | J22: 0 | K22: 0 | L22: 0 | M22: 0 | N22: 0 | O22: 0 | P22: 0 | Q22: 0 | R22: 0 | S22: 0 | T22: 0 | U22: 0 | V22: 0 | W22: 0 | X22: 0 | Y22: 0
B23: 17 | D23: =IF(value!D23="", "", value!D23) -> 0.09157403388 | J23: 0 | K23: 0 | L23: 0 | M23: 0 | N23: 0 | O23: 0 | P23: 0 | Q23: 0 | R23: 0 | S23: 0 | T23: 0 | U23: 0 | V23: 0 | W23: 0 | X23: 0 | Y23: 0
B24: 18 | D24: =IF(value!D24="", "", value!D24) -> 0.09711167333 | J24: 0 | K24: 0 | L24: 0 | M24: 0 | N24: 0 | O24: 0 | P24: 0 | Q24: 0 | R24: 0 | S24: 0 | T24: 0 | U24: 0 | V24: 0 | W24: 0 | X24: 0 | Y24: 0
B25: 19 | D25: =IF(value!D25="", "", value!D25) -> 0.1026493128 | J25: 0 | K25: 0 | L25: 0 | M25: 0 | N25: 0 | O25: 0 | P25: 0 | Q25: 0 | R25: 0 | S25: 0 | T25: 0 | U25: 0 | V25: 0 | W25: 0 | X25: 0 | Y25: 0
B26: 20 | D26: =IF(value!D26="", "", value!D26) -> 0.1081869522 | K26: 0 | L26: 0 | M26: 0 | N26: 0 | O26: 0 | P26: 0 | Q26: 0 | R26: 0 | S26: 0 | T26: 0 | U26: 0 | V26: 0 | W26: 0 | X26: 0 | Y26: 0
B27: 21 | D27: =IF(value!D27="", "", value!D27) -> 
B28: 22 | D28: =IF(value!D28="", "", value!D28) -> 
B29: 23 | D29: =IF(value!D29="", "", value!D29) -> 
B30: 24 | D30: =IF(value!D30="", "", value!D30) -> 
B31: 25 | D31: =IF(value!D31="", "", value!D31) -> 
B32: 26 | D32: =IF(value!D32="", "", value!D32) -> 
B33: 27 | D33: =IF(value!D33="", "", value!D33) -> 
B34: 28 | D34: =IF(value!D34="", "", value!D34) -> 
B35: 29 | D35: =IF(value!D35="", "", value!D35) -> 
B36: 30 | D36: =IF(value!D36="", "", value!D36) -> 
B37: 31 | D37: =IF(value!D37="", "", value!D37) -> 
B38: 32 | D38: =IF(value!D38="", "", value!D38) -> 
B39: 33 | D39: =IF(value!D39="", "", value!D39) -> 
B40: 34 | D40: =IF(value!D40="", "", value!D40) -> 
B41: 35 | D41: =IF(value!D41="", "", value!D41) -> 
B42: 36 | D42: =IF(value!D42="", "", value!D42) -> 
B43: 37 | D43: =IF(value!D43="", "", value!D43) -> 
B44: 38 | D44: =IF(value!D44="", "", value!D44) -> 
B45: 39 | D45: =IF(value!D45="", "", value!D45) -> 
B46: 40 | D46: =IF(value!D46="", "", value!D46) -> 
B47: 41 | D47: =IF(value!D47="", "", value!D47) -> 
B48: 42 | D48: =IF(value!D48="", "", value!D48) -> 
B49: 43 | D49: =IF(value!D49="", "", value!D49) -> 
B50: 44 | D50: =IF(value!D50="", "", value!D50) -> 
B51: 45 | D51: =IF(value!D51="", "", value!D51) -> 
B52: 46 | D52: =IF(value!D52="", "", value!D52) -> 
B53: 47 | D53: =IF(value!D53="", "", value!D53) -> 
B54: 48 | D54: =IF(value!D54="", "", value!D54) -> 
B55: 49 | D55: =IF(value!D55="", "", value!D55) -> 
B56: 50 | D56: =IF(value!D56="", "", value!D56) -> 
B57: 51 | D57: =IF(value!D57="", "", value!D57) -> 
B58: 52 | D58: =IF(value!D58="", "", value!D58) -> 
B59: 53 | D59: =IF(value!D59="", "", value!D59) -> 
B60: 54 | D60: =IF(value!D60="", "", value!D60) -> 
B61: 55 | D61: =IF(value!D61="", "", value!D61) -> 
B62: 56 | D62: =IF(value!D62="", "", value!D62) -> 
B63: 57 | D63: =IF(value!D63="", "", value!D63) -> 
B64: 58 | D64: =IF(value!D64="", "", value!D64) -> 
B65: 59 | D65: =IF(value!D65="", "", value!D65) -> 
B66: 60 | D66: =IF(value!D66="", "", value!D66) -> 
B67: 61 | D67: =IF(value!D67="", "", value!D67) -> 
B68: 62 | D68: =IF(value!D68="", "", value!D68) -> 
B69: 63 | D69: =IF(value!D69="", "", value!D69) -> 
B70: 64 | D70: =IF(value!D70="", "", value!D70) -> 
B71: 65 | D71: =IF(value!D71="", "", value!D71) -> 
B72: 66 | D72: =IF(value!D72="", "", value!D72) -> 
B73: 67 | D73: =IF(value!D73="", "", value!D73) -> 
B74: 68 | D74: =IF(value!D74="", "", value!D74) -> 
B75: 69 | D75: =IF(value!D75="", "", value!D75) -> 
B76: 70 | D76: =IF(value!D76="", "", value!D76) -> 
B77: 71 | D77: =IF(value!D77="", "", value!D77) -> 
B78: 72 | D78: =IF(value!D78="", "", value!D78) -> 
B79: 73 | D79: =IF(value!D79="", "", value!D79) -> 
B80: 74 | D80: =IF(value!D80="", "", value!D80) -> 
B81: 75 | D81: =IF(value!D81="", "", value!D81) -> 
B82: 76 | D82: =IF(value!D82="", "", value!D82) -> 
B83: 77 | D83: =IF(value!D83="", "", value!D83) -> 
B84: =B83+1 -> 78 | D84: =IF(value!D84="", "", value!D84) -> 
B85: 79 | D85: =IF(value!D85="", "", value!D85) -> 
B86: 80 | D86: =IF(value!D86="", "", value!D86) -> 
B87: 81 | D87: =IF(value!D87="", "", value!D87) -> 

Sheet D
B2: State distribution
E3: =SUM(E7:E500) -> 1 | F3: =SUM(F7:F500) -> 1 | G3: 1 | H3: 1 | I3: 1 | J3: 1 | K3: 1 | L3: 1 | M3: 1 | N3: 1 | O3: 1 | P3: 1 | Q3: 1 | R3: 1 | S3: 1 | T3: 1 | U3: 1 | V3: 1 | W3: 1 | X3: 1 | Y3: 1 | Z3: 0 | AA3: 0 | AB3: 0 | AC3: 0 | AD3: 0 | AE3: 0 | AF3: 0 | AG3: 0 | AH3: 0 | AI3: 0 | AJ3: 0 | AK3: 0 | AL3: 0 | AM3: 0 | AN3: 0 | AO3: 0 | AP3: 0 | AQ3: 0 | AR3: 0 | AS3: 0
E4: =SUMPRODUCT($D$7:$D$101, E7:E101) -> 0.03066 | F4: =SUMPRODUCT($D$7:$D$101, F7:F101) -> 0.03066596154 | G4: 0.03067192307 | H4: 0.03295994921 | I4: 0.03524797847 | J4: 0.03569731631 | K4: 0.0361468598 | L4: 0.03659685445 | M4: 0.03704757561 | N4: 0.04170712387 | O4: 0.0463666624 | P4: 0.05102619085 | Q4: 0.05568564334 | R4: 0.05461748618 | S4: 0.05354941725 | T4: 0.05248155274 | U4: 0.05141407822 | V4: 0.05474121114 | W4: 0.05806662444 | X4: 0.06138793021 | Y4: 0.06470051272
E5: time period
B6: # | E6: 0 | F6: =E6+1 -> 1 | G6: =F6+1 -> 2 | H6: =G6+1 -> 3 | I6: =H6+1 -> 4 | J6: =I6+1 -> 5 | K6: =J6+1 -> 6 | L6: 7 | M6: 8 | N6: 9 | O6: 10 | P6: 11 | Q6: 12 | R6: 13 | S6: 14 | T6: 15 | U6: 16 | V6: 17 | W6: 18 | X6: 19 | Y6: 20 | Z6: 21 | AA6: 22 | AB6: 23 | AC6: 24 | AD6: 25 | AE6: 26 | AF6: 27 | AG6: 28 | AH6: 29 | AI6: 30 | AJ6: 31 | AK6: 32 | AL6: =AK6+1 -> 33 | AM6: =AL6+1 -> 34 | AN6: =AM6+1 -> 35 | AO6: =AN6+1 -> 36 | AP6: =AO6+1 -> 37 | AQ6: =AP6+1 -> 38 | AR6: =AQ6+1 -> 39 | AS6: =AR6+1 -> 40
B7: 1 | C7: state | D7: =IF(value!D7="", "", value!D7) -> 0.002971802781 | E7: =_xll.AC.stats.markov.getCalc(tree!I27, config!B57) ->  | H7: 8.629793904e-06 | I7: 3.421945245e-05 | J7: 0.0001633654147 | K7: 0.0004495963705 | L7: 0.0009128257248 | M7: 0.001536460127 | N7: 0.0005850055933 | O7: 0.0002310467188 | P7: 9.351322902e-05 | Q7: 3.851773137e-05 | R7: 0.0001382959591 | S7: 0.0003467213876 | T7: 0.0007274057551 | U7: 0.001358328846 | V7: 0.0007712897147 | W7: 0.0004535092774 | X7: 0.0002726720763 | Y7: 0.0001664797031
B8: =B7+1 -> 2 | D8: =IF(value!D8="", "", value!D8) -> 0.008509442225 | G8: 6.699004978e-05 | H8: 0.000318329357 | I8: 0.0005773458207 | J8: 0.001514012992 | K8: 0.002815750423 | L8: 0.004323935822 | M8: 0.005907521576 | N8: 0.002761048657 | O8: 0.001227863421 | P8: 0.0005371548564 | Q8: 0.0002338722911 | R8: 0.0005045828014 | S8: 0.0009414352 | T8: 0.001584349183 | U8: 0.002465209091 | V8: 0.001799777656 | W8: 0.001210719408 | X8: 0.0007914720758 | Y8: 0.0005117754672
B9: 3 | D9: =IF(value!D9="", "", value!D9) -> 0.01404708167 | G9: 0.003277708168 | H9: 0.00533847891 | I9: 0.005848083574 | J9: 0.009986469323 | K9: 0.01399440145 | L9: 0.0175737526 | M9: 0.020642655 | N9: 0.01010565204 | O9: 0.004889564361 | P9: 0.00231397862 | Q9: 0.001076473047 | R9: 0.00195870528 | S9: 0.003217686981 | T9: 0.004894354029 | U9: 0.007004902942 | V9: 0.004744045284 | W9: 0.003277448998 | X9: 0.002243295186 | Y9: 0.001517501937
B10: 4 | D10: =IF(value!D10="", "", value!D10) -> 0.01958472111 | F10: 0.008184753664 | G10: 0.04962287887 | H10: 0.04230669007 | I10: 0.03447506793 | J10: 0.04274025779 | K10: 0.04841175239 | L10: 0.05220187155 | M10: 0.05466347632 | N10: 0.02928410395 | O10: 0.01521239548 | P10: 0.007725754817 | Q10: 0.003841410662 | R10: 0.006058387511 | S10: 0.008869830245 | T10: 0.01224384591 | U10: 0.01611760698 | V10: 0.01127833383 | W10: 0.007851089704 | X10: 0.005470195935 | Y10: 0.00379865895
B11: 5 | D11: =IF(value!D11="", "", value!D11) -> 0.02512236056 | F11: 0.2002327618 | G11: 0.2364295528 | H11: 0.1643110967 | I11: 0.1194315138 | J11: 0.1196672799 | K11: 0.1175780205 | L11: 0.1145038567 | M11: 0.1110575746 | N11: 0.06706354875 | O11: 0.03832610851 | P11: 0.02105708153 | Q11: 0.01122960772 | R11: 0.0157699252 | S11: 0.02092155193 | T11: 0.02652562696 | U11: 0.03241910572 | V11: 0.02349574235 | W11: 0.01687632632 | X11: 0.01203659093 | Y11: 0.008545349332
B12: 6 | D12: =IF(value!D12="", "", value!D12) -> 0.03066 | E12: 1 | F12: 0.5821642133 | G12: 0.4196071691 | H12: 0.3176372193 | I12: 0.2430078797 | J12: 0.2187403587 | K12: 0.2000692439 | L12: 0.1851142122 | M12: 0.1727749083 | N12: 0.1212525911 | O12: 0.07810684658 | P12: 0.04731360473 | Q12: 0.02738310459 | R12: 0.03479320427 | S12: 0.04236359806 | T12: 0.04986106436 | U12: 0.05709904114 | V12: 0.04314814578 | W12: 0.03218058184 | X12: 0.02373467543 | Y12: 0.01734455047
B13: 7 | D13: =IF(value!D13="", "", value!D13) -> 0.03619763944 | F13: 0.201157725 | G13: 0.237521725 | H13: 0.2976188136 | I13: 0.2888261743 | J13: 0.2602100901 | K13: 0.2380610633 | L13: 0.2202807202 | M13: 0.2055974306 | N13: 0.1729203615 | O13: 0.1286538437 | P13: 0.08764506998 | Q13: 0.05592722471 | R13: 0.06517583163 | S13: 0.07368686715 | T13: 0.08133013346 | U13: 0.08804338878 | V13: 0.06991771376 | W13: 0.05449901623 | X13: 0.04182210405 | Y13: 0.03167095853
B14: 8 | D14: =IF(value!D14="", "", value!D14) -> 0.04173527889 | F14: 0.008260546278 | G14: 0.05008239767 | H14: 0.1372789646 | I14: 0.2017214062 | J14: 0.2018857279 | K14: 0.1982708743 | L14: 0.1930347148 | M14: 0.1871844455 | N14: 0.1943980409 | O14: 0.1711672354 | P14: 0.1337749492 | Q14: 0.09568107631 | R14: 0.1036595147 | S14: 0.1100937587 | T14: 0.1151056101 | U14: 0.1188381727 | V14: 0.09996232458 | W14: 0.08200393111 | X14: 0.06587401362 | Y14: 0.05198419031
B15: 9 | D15: =IF(value!D15="", "", value!D15) -> 0.04727291833 | G15: 0.003323341857 | H15: 0.03150949505 | I15: 0.08297866889 | J15: 0.1024944849 | K15: 0.1158601701 | L15: 0.124772493 | M15: 0.1305306131 | N15: 0.1722937321 | O15: 0.1838721602 | P15: 0.1681611627 | Q15: 0.137061784 | R15: 0.1399370572 | S15: 0.1412564383 | T15: 0.1413226303 | U15: 0.140389253 | V15: 0.1260840926 | W15: 0.1096258302 | X15: 0.09276184029 | Y15: 0.07670804015
B16: 10 | D16: =IF(value!D16="", "", value!D16) -> 0.05281055778 | G16: 6.823647955e-05 | H16: 0.003484348598 | I16: 0.02004106282 | J16: 0.0340702427 | K16: 0.04757521656 | L16: 0.0595764005 | M16: 0.0698037063 | N16: 0.1204602149 | O16: 0.1594835012 | P16: 0.1740436663 | Q16: 0.1643384308 | R16: 0.1603013872 | S16: 0.1556074434 | T16: 0.1504934038 | U16: 0.1451319807 | V16: 0.1402822587 | W16: 0.1301910469 | X16: 0.116775588 | Y16: 0.101762338
B17: 11 | D17: =IF(value!D17="", "", value!D17) -> 0.05834819722 | H17: 0.00018362181 | I17: 0.002817600885 | J17: 0.007387994974 | K17: 0.01371591499 | L17: 0.02101952373 | M17: 0.02864504748 | N17: 0.06648977135 | O17: 0.1117313345 | P17: 0.1483073626 | Q17: 0.1648914401 | R17: 0.1557921225 | S17: 0.1471514749 | T17: 0.1389820952 | U17: 0.1312793113 | V17: 0.1376618784 | W17: 0.1373392291 | X17: 0.1314094657 | Y17: 0.1213638683
B18: 12 | D18: =IF(value!D18="", "", value!D18) -> 0.06388583666 | H18: 4.280270304e-06 | I18: 0.0002300006114 | J18: 0.001039364225 | K18: 0.002767641797 | L18: 0.005472641432 | M18: 0.009017335085 | N18: 0.02899014788 | O18: 0.06325881536 | P18: 0.1040719101 | Q18: 0.1384445476 | R18: 0.1284507847 | S18: 0.119450858 | T18: 0.1113048932 | U18: 0.1038992827 | V18: 0.1191401359 | W18: 0.1286810156 | X18: 0.1321772096 | Y18: 0.1301120154
B19: 13 | D19: =IF(value!D19="", "", value!D19) -> 0.06942347611 | H19: 3.198170796e-08 | I19: 1.070305134e-05 | J19: 9.460508402e-05 | K19: 0.0003894888489 | L19: 0.001048939624 | M19: 0.002174696644 | N19: 0.00998517955 | O19: 0.02895715431 | P19: 0.06016281795 | Q19: 0.09728177998 | R19: 0.08985605635 | S19: 0.08323892198 | T19: 0.07730308629 | U19: 0.0719481027 | V19: 0.09093271606 | W19: 0.1070811884 | X19: 0.1188256665 | Y19: 0.1253834792
B20: 14 | D20: =IF(value!D20="", "", value!D20) -> 0.07496111555 | I20: 2.697557383e-07 | J20: 5.536538101e-06 | K20: 3.81469387e-05 | L20: 0.0001476537185 | M20: 0.0004010692861 | N20: 0.002715346926 | O20: 0.01071930463 | P20: 0.02866208395 | Q20: 0.05722390679 | R20: 0.05334048201 | S20: 0.04980053578 | T20: 0.04656394322 | U20: 0.04359633171 | V20: 0.06120749221 | W20: 0.07913661007 | X20: 0.09546952823 | Y20: 0.1086004075
B21: 15 | D21: =IF(value!D21="", "", value!D21) -> 0.08049875499 | I21: 3.282186653e-09 | J21: 2.047671478e-07 | K21: 2.592847243e-06 | L21: 1.52406218e-05 | M21: 5.646898944e-05 | N21: 0.000582345726 | O21: 0.003208260664 | P21: 0.01125577714 | Q21: 0.02818654676 | R21: 0.0268760065 | S21: 0.02558534033 | T21: 0.02432982676 | U21: 0.02311864317 | V21: 0.03633596027 | W21: 0.05194095099 | X21: 0.06855015686 | Y21: 0.08454175636
B22: 16 | D22: =IF(value!D22="", "", value!D22) -> 0.08603639444 | I22: 1.498942243e-11 | J22: 4.616278699e-09 | K22: 1.214463812e-07 | L22: 1.151727474e-06 | M22: 6.062806978e-06 | N22: 9.836063039e-05 | O22: 0.0007758886204 | P22: 0.00364358038 | Q22: 0.01162855569 | R22: 0.01149656469 | S22: 0.01129006771 | T22: 0.01102982061 | U22: 0.01073173979 | V22: 0.01902708864 | W22: 0.03027867611 | X22: 0.04398973162 | Y22: 0.05915110953
B23: 17 | D23: =IF(value!D23="", "", value!D23) -> 0.09157403388 | J23: 5.947764238e-11 | K23: 3.86253072e-09 | L23: 6.351036102e-08 | M23: 4.95889283e-07 | N23: 1.306612535e-05 | O23: 0.0001514777858 | P23: 0.0009719870667 | Q23: 0.004019185834 | R23: 0.004177078544 | S23: 0.004281858984 | T23: 0.004342067578 | U23: 0.004365241788 | V23: 0.008795856509 | W23: 0.01569209853 | X23: 0.02526029835 | Y23: 0.03725853136
B24: 18 | D24: =IF(value!D24="", "", value!D24) -> 0.09711167333 | J24: 3.924586414e-13 | K24: 8.13049563e-11 | L24: 2.53793041e-09 | M24: 3.084536548e-08 | N24: 1.363363024e-06 | O24: 2.384783656e-05 | P24: 0.0002136169084 | Q24: 0.001164500549 | R24: 0.001290202735 | S24: 0.001397496071 | T24: 0.001486647207 | U24: 0.001558689454 | V24: 0.003600195165 | W24: 0.007254329344 | X24: 0.01303062573 | Y24: 0.02122328959
B25: 19 | D25: =IF(value!D25="", "", value!D25) -> 0.1026493128 | J25: 1.001996309e-15 | K25: 1.08881773e-12 | L25: 7.257966947e-11 | M25: 1.451668816e-09 | N25: 1.113097726e-07 | O25: 3.009120012e-06 | P25: 3.83216308e-05 | Q25: 0.0002790059146 | R25: 0.0003344748521 | S25: 0.0003868774587 | T25: 0.0004354454479 | U25: 0.0004795707013 | V25: 0.001241417409 | W25: 0.002807777443 | X25: 0.005593903225 | Y25: 0.009991083409
B26: 20 | D26: =IF(value!D26="", "", value!D26) -> 0.1081869522 | K26: 8.77613684e-15 | L26: 1.497996163e-12 | M26: 5.452967259e-11 | N26: 7.687083559e-09 | O26: 3.417005984e-07 | P26: 6.606350587e-06 | Q26: 6.902892208e-05 | R26: 8.933536176e-05 | S26: 0.00011123746 | T26: 0.0001337506388 | U26: 0.0001560968294 | V26: 0.0005735352857 | W26: 0.001618624386 | X26: 0.003910966663 | Y26: 0.008364616582
B27: 21 | D27: =IF(value!D27="", "", value!D27) -> 
B28: 22 | D28: =IF(value!D28="", "", value!D28) -> 
B29: 23 | D29: =IF(value!D29="", "", value!D29) -> 
B30: 24 | D30: =IF(value!D30="", "", value!D30) -> 
B31: 25 | D31: =IF(value!D31="", "", value!D31) -> 
B32: 26 | D32: =IF(value!D32="", "", value!D32) -> 
B33: 27 | D33: =IF(value!D33="", "", value!D33) -> 
B34: 28 | D34: =IF(value!D34="", "", value!D34) -> 
B35: 29 | D35: =IF(value!D35="", "", value!D35) -> 
B36: 30 | D36: =IF(value!D36="", "", value!D36) -> 
B37: 31 | D37: =IF(value!D37="", "", value!D37) -> 
B38: 32 | D38: =IF(value!D38="", "", value!D38) -> 
B39: 33 | D39: =IF(value!D39="", "", value!D39) -> 
B40: 34 | D40: =IF(value!D40="", "", value!D40) -> 
B41: 35 | D41: =IF(value!D41="", "", value!D41) -> 
B42: 36 | D42: =IF(value!D42="", "", value!D42) -> 
B43: 37 | D43: =IF(value!D43="", "", value!D43) -> 
B44: 38 | D44: =IF(value!D44="", "", value!D44) -> 
B45: 39 | D45: =IF(value!D45="", "", value!D45) -> 
B46: 40 | D46: =IF(value!D46="", "", value!D46) -> 
B47: 41 | D47: =IF(value!D47="", "", value!D47) -> 
B48: 42 | D48: =IF(value!D48="", "", value!D48) -> 
B49: 43 | D49: =IF(value!D49="", "", value!D49) -> 
B50: 44 | D50: =IF(value!D50="", "", value!D50) -> 
B51: 45 | D51: =IF(value!D51="", "", value!D51) -> 
B52: 46 | D52: =IF(value!D52="", "", value!D52) -> 
B53: 47 | D53: =IF(value!D53="", "", value!D53) -> 
B54: 48 | D54: =IF(value!D54="", "", value!D54) -> 
B55: 49 | D55: =IF(value!D55="", "", value!D55) -> 
B56: 50 | D56: =IF(value!D56="", "", value!D56) -> 
B57: 51 | D57: =IF(value!D57="", "", value!D57) -> 
B58: 52 | D58: =IF(value!D58="", "", value!D58) -> 
B59: 53 | D59: =IF(value!D59="", "", value!D59) -> 
B60: 54 | D60: =IF(value!D60="", "", value!D60) -> 
B61: 55 | D61: =IF(value!D61="", "", value!D61) -> 
B62: 56 | D62: =IF(value!D62="", "", value!D62) -> 
B63: 57 | D63: =IF(value!D63="", "", value!D63) -> 
B64: 58 | D64: =IF(value!D64="", "", value!D64) -> 
B65: 59 | D65: =IF(value!D65="", "", value!D65) -> 
B66: 60 | D66: =IF(value!D66="", "", value!D66) -> 
B67: 61 | D67: =IF(value!D67="", "", value!D67) -> 
B68: 62 | D68: =IF(value!D68="", "", value!D68) -> 
B69: 63 | D69: =IF(value!D69="", "", value!D69) -> 
B70: 64 | D70: =IF(value!D70="", "", value!D70) -> 
B71: 65 | D71: =IF(value!D71="", "", value!D71) -> 
B72: =B71+1 -> 66 | D72: =IF(value!D72="", "", value!D72) -> 
B73: 67 | D73: =IF(value!D73="", "", value!D73) -> 
B74: 68 | D74: =IF(value!D74="", "", value!D74) -> 
B75: 69 | D75: =IF(value!D75="", "", value!D75) -> 
B76: 70 | D76: =IF(value!D76="", "", value!D76) -> 
B77: 71 | D77: =IF(value!D77="", "", value!D77) -> 
B78: 72 | D78: =IF(value!D78="", "", value!D78) -> 
B79: 73 | D79: =IF(value!D79="", "", value!D79) -> 
B80: 74 | D80: =IF(value!D80="", "", value!D80) -> 
B81: 75 | D81: =IF(value!D81="", "", value!D81) -> 
B82: 76 | D82: =IF(value!D82="", "", value!D82) -> 
B83: 77 | D83: =IF(value!D83="", "", value!D83) -> 
B84: 78 | D84: =IF(value!D84="", "", value!D84) -> 
B85: 79 | D85: =IF(value!D85="", "", value!D85) -> 
B86: 80 | D86: =IF(value!D86="", "", value!D86) -> 
B87: 81 | D87: =IF(value!D87="", "", value!D87) -> 

Sheet validate
B2: TAB: MODEL VALIDATION
B4: Cash Flows Test | K4: Interest Rate Process Distribution Test | T4: Bond Bullet Price Test
B6: =cf!B10 -> period-end | D6: =cf!C10 -> 20 | F6: =summary!B12 -> dt | H6: =cf!C14 -> 0.25
B7: =_xll.AC.finance.srm.get(tree!I28, config!B25, F8) -> java.util.LinkedHashMap@Thu, 7 Feb 2019 12:29:32:323..53282219401931169 | F7: =config!B26 -> sample-bond-index | H7: 0 | K7: =_xll.AC.finance.srm.validate.get(tree!I29, config!B38, ) -> java.util.LinkedHashMap@Thu, 7 Feb 2019 12:29:30:628..4380787489695953979 | N7: =_xll.AC.data.size(K7, 1) -> 3
B8: =_xll.AC.finance.cf.get(B7, "", ) -> java.util.ArrayList@Thu, 7 Feb 2019 12:29:32:324..1254858725648167568 | F8: =_xll.AC.data.map(F7, H7) -> java.util.LinkedHashMap@Thu, 7 Feb 2019 12:29:32:208..4860711840628498781 | K8: =_xll.AC.data._get(K7, config!B39, ) -> java.util.ArrayList@Thu, 7 Feb 2019 12:29:30:628..5900239313026907067 | M8: =_xll.AC.data.size(K8, 1) -> 4 | N8: =_xll.AC.data.size(K8, 2) -> 22 | O8: =_xll.AC.data._get(K7, config!B40, ) -> java.util.ArrayList@Thu, 7 Feb 2019 12:29:30:628..204323430064850294 | Q8: =_xll.AC.data.size(O8, 1) -> 4 | R8: =_xll.AC.data.size(O8, 2) -> 22 | T8: =_xll.AC.data._get(K7, config!B41, ) -> java.util.ArrayList@Thu, 7 Feb 2019 12:29:30:628..6042628162586883839 | V8: =_xll.AC.data.size(T8, 1) -> 5 | W8: =_xll.AC.data.size(T8, 2) -> 22
B9: cash flows | K9: mean | O9: standard deviation
B10: period | C10: time | D10: principal outstanding | E10: principal paid | F10: interest accrued | G10: interest paid | H10: Total amount paid | I10: Redemption value | K10: =_xll.AC.data._get(K8, "", 1) -> period | L10: mean - model | M10: mean - numeric | N10: mean - difference | O10: =_xll.AC.data._get(O8, "", 1) -> period | P10: stdev - model | Q10: stdev - numeric | R10: stdev - difference | T10: =_xll.AC.data._get(T8, "", 1) -> period | U10: state | V10: bullet value - model | W10: bullet value - numeric | X10: bullet value - difference
B11: 0 | C11: =IF(B11="", "", B11*$C$19) -> 0 | D11: =_xll.AC.data._get(B8, "", 0) -> 100 | E11: 0 | F11: 0 | G11: 0 | H11: 0 | I11: 104.0190361 | J11: 0 | K11: 0 | L11: 0.03066 | M11: 0.03066 | N11: 0 | O11: 0 | P11: 0 | Q11: 0 | R11: 0 | T11: 0 | U11: 0.03066 | V11: 99.58142503 | W11: 100 | X11: 0.4185749722
B12: =IF(B11="", "", IF(B11+1>$D$6, "", B11+1)) -> 1 | C12: =IF(B12="", "", B12*$H$6) -> 0.25 | D12: 100 | E12: 0 | F12: 1.08952684 | G12: 0 | H12: 0 | I12: 104.9076111 | J12: 0 | K12: 1 | L12: 0.03066119978 | M12: 0.03066596154 | N12: 4.761757054e-06 | O12: 1 | P12: 0.003794385635 | Q12: 0.003784969583 | R12: -9.41605273e-06 | T12: 1 | U12: 0.02789593995 | V12: 99.90488378 | W12: 100.8776976 | X12: 0.9728138463
B13: 2 | C13: 0.5 | D13: 100 | E13: 0 | F13: 2.179053679 | G13: 2.179053679 | H13: 2.179053679 | I13: 105.7961862 | J13: 50 | K13: 2 | L13: 0.03066719868 | M13: 0.03067192307 | N13: 4.724391843e-06 | O13: 2 | P13: 0.005366071626 | Q13: 0.005352754651 | R13: -1.331697525e-05 | T13: 2 | U13: 0.02790172861 | V13: 101.2554544 | W13: 100.4889792 | X13: -0.7664751304
B14: 3 | C14: 0.75 | D14: 100 | E14: 0 | F14: 1.08952684 | G14: 0 | H14: 0 | I14: 104.5057075 | J14: 0 | K14: 3 | L14: 0.03295679692 | M14: 0.03295994921 | N14: 3.152290003e-06 | O14: 3 | P14: 0.006572068704 | Q14: 0.006564403534 | R14: -7.665169632e-06 | T14: 3 | U14: 0.03013837148 | V14: 99.55929918 | W14: 100.1354784 | X14: 0.5761791843
B15: 4 | C15: 1 | D15: 100 | E15: 0 | F15: 2.179053679 | G15: 2.179053679 | H15: 2.179053679 | I15: 105.3942826 | J15: 50 | K15: 4 | L15: 0.03524639516 | M15: 0.03524797847 | N15: 1.583309916e-06 | O15: 4 | P15: 0.007588771271 | Q15: 0.007584890277 | R15: -3.880993706e-06 | T15: 4 | U15: 0.03251259989 | V15: 100.0344429 | W15: 99.80027933 | X15: -0.2341635368
B16: 5 | C16: 1.25 | D16: 100 | E16: 0 | F16: 1.08952684 | G16: 0 | H16: 0 | I16: 104.1038039 | J16: 0 | K16: 5 | L16: 0.03569679143 | M16: 0.03569731631 | N16: 5.248778134e-07 | O16: 5 | P16: 0.008484504213 | Q16: 0.008477838765 | R16: -6.665447923e-06 | T16: 5 | U16: 0.03294111798 | V16: 98.99329364 | W16: 99.52693931 | X16: 0.5336456755
B17: 6 | C17: 1.5 | D17: 100 | E17: 0 | F17: 2.179053679 | G17: 2.179053679 | H17: 2.179053679 | I17: 104.9923789 | J17: 50 | K17: 6 | L17: 0.03614718769 | M17: 0.0361468598 | N17: -3.278913509e-07 | O17: 6 | P17: 0.009294308694 | Q17: 0.009284581782 | R17: -9.726911432e-06 | T17: 6 | U17: 0.03337417174 | V17: 100.1948826 | W17: 99.26869005 | X17: -0.9261925806
B18: 7 | C18: 1.75 | D18: 100 | E18: 0 | F18: 1.08952684 | G18: 0 | H18: 0 | I18: 103.7019003 | J18: 0 | K18: 7 | L18: 0.03659758395 | M18: 0.03659685445 | N18: -7.295016247e-07 | O18: 7 | P18: 0.01003900077 | Q18: 0.01002511957 | R18: -1.388120055e-05 | T18: 7 | U18: 0.03381166638 | V18: 99.23755738 | W18: 99.00736779 | X18: -0.2301895888
B19: 8 | C19: 2 | D19: 100 | E19: 0 | F19: 2.179053679 | G19: 2.179053679 | H19: 2.179053679 | I19: 104.5904753 | J19: 50 | K19: 8 | L19: 0.03704798022 | M19: 0.03704757561 | N19: -4.046051507e-07 | O19: 8 | P19: 0.01073214325 | Q19: 0.01071228677 | R19: -1.985648094e-05 | T19: 8 | U19: 0.03425351514 | V19: 100.5256393 | W19: 98.76087368 | X19: -1.764765587
B20: 9 | C20: 2.25 | D20: 100 | E20: 0 | F20: 1.08952684 | G20: 0 | H20: 0 | I20: 103.2999967 | J20: 0 | K20: 9 | L20: 0.0417051734 | M20: 0.04170712387 | N20: 1.950465309e-06 | O20: 9 | P20: 0.01138315691 | Q20: 0.01136300536 | R20: -2.015154305e-05 | T20: 9 | U20: 0.0389330925 | V20: 98.58262154 | W20: 98.55739112 | X20: -0.02523041688
B21: 10 | C21: 2.5 | D21: 100 | E21: 0 | F21: 2.179053679 | G21: 2.179053679 | H21: 2.179053679 | I21: 104.1885717 | J21: 50 | K21: 10 | L21: 0.04636236659 | M21: 0.0463666624 | N21: 4.295814422e-06 | O21: 10 | P21: 0.01199890093 | Q21: 0.01197844737 | R21: -2.045355505e-05 | T21: 10 | U21: 0.04360809443 | V21: 98.93198786 | W21: 98.47746567 | X21: -0.454522189
B22: 11 | C22: 2.75 | D22: 100 | E22: 0 | F22: 1.08952684 | G22: 0 | H22: 0 | I22: 102.8980931 | J22: 0 | K22: 11 | L22: 0.05101955978 | M22: 0.05102619085 | N22: 6.631069751e-06 | O22: 11 | P22: 0.01258455346 | Q22: 0.01256376459 | R22: -2.078886791e-05 | T22: 11 | U22: 0.04827128019 | V22: 97.19590468 | W22: 98.50039156 | X22: 1.30448688
B23: 12 | C23: 3 | D23: 100 | E23: 0 | F23: 2.179053679 | G23: 2.179053679 | H23: 2.179053679 | I23: 103.7866681 | J23: 50 | K23: 12 | L23: 0.05567675296 | M23: 0.05568564334 | N23: 8.890380627e-06 | O23: 12 | P23: 0.01314413741 | Q23: 0.01312270891 | R23: -2.142849847e-05 | T23: 12 | U23: 0.05291763885 | V23: 97.75291038 | W23: 98.65137833 | X23: 0.8984679553
B24: 13 | C24: 3.25 | D24: 100 | E24: 0 | F24: 1.08952684 | G24: 0 | H24: 0 | I24: 102.4961895 | J24: 0 | K24: 13 | L24: 0.05460594395 | M24: 0.05461748618 | N24: 1.154223059e-05 | O24: 13 | P24: 0.01368085197 | Q24: 0.01365901092 | R24: -2.184104331e-05 | T24: 13 | U24: 0.0518330367 | V24: 97.15438922 | W24: 98.83053763 | X24: 1.676148408
B25: 14 | C25: 3.5 | D25: 100 | E25: 0 | F25: 2.179053679 | G25: 2.179053679 | H25: 2.179053679 | I25: 103.3847645 | J25: 50 | K25: 14 | L25: 0.05353513494 | M25: 0.05354941725 | N25: 1.428231057e-05 | O25: 14 | P25: 0.01419729104 | Q25: 0.01417450265 | R25: -2.2788391e-05 | T25: 14 | U25: 0.05077121919 | V25: 98.70267745 | W25: 98.98668037 | X25: 0.2840029209
B26: 15 | C26: 3.75 | D26: 100 | E26: 0 | F26: 1.08952684 | G26: 0 | H26: 0 | I26: 102.0942859 | J26: 0 | K26: 15 | L26: 0.05246432593 | M26: 0.05248155274 | N26: 1.72268179e-05 | O26: 15 | P26: 0.01469559237 | Q26: 0.01467092909 | R26: -2.466328801e-05 | T26: 15 | U26: 0.04971639311 | V26: 97.9980708 | W26: 99.09452047 | X26: 1.096449673
B27: 16 | C27: 4 | D27: 100 | E27: 0 | F27: 2.179053679 | G27: 2.179053679 | H27: 2.179053679 | I27: 102.9828609 | J27: 50 | K27: 16 | L27: 0.05139351691 | M27: 0.05141407822 | N27: 2.056130723e-05 | O27: 16 | P27: 0.01517754254 | Q27: 0.01514950756 | R27: -2.803497674e-05 | T27: 16 | U27: 0.04865664122 | V27: 99.44096653 | W27: 99.18027998 | X27: -0.2606865514
B28: 17 | C28: 4.25 | D28: 100 | E28: 0 | F28: 1.08952684 | G28: 0 | H28: 0 | I28: 101.6923823 | J28: 0 | K28: 17 | L28: 0.05471950482 | M28: 0.05474121114 | N28: 2.170631076e-05 | O28: 17 | P28: 0.01564465276 | Q28: 0.01561592007 | R28: -2.873268865e-05 | T28: 17 | U28: 0.05196248818 | V28: 98.29770085 | W28: 99.2733904 | X28: 0.9756895586
B29: 18 | C29: 4.5 | D29: 100 | E29: 0 | F29: 2.179053679 | G29: 2.179053679 | H29: 2.179053679 | I29: 102.5809573 | J29: 50 | K29: 18 | L29: 0.05804549274 | M29: 0.05806662444 | N29: 2.113170251e-05 | O29: 18 | P29: 0.01609821488 | Q29: 0.01606346133 | R29: -3.475354838e-05 | T29: 18 | U29: 0.05530361834 | V29: 99.45175393 | W29: 99.44863682 | X29: -0.003117101289
B30: 19 | C30: 4.75 | D30: 100 | E30: 0 | F30: 1.08952684 | G30: 0 | H30: 0 | I30: 101.2904786 | J30: 0 | K30: 19 | L30: 0.06137148065 | M30: 0.06138793021 | N30: 1.644956668e-05 | O30: 19 | P30: 0.01653934354 | Q30: 0.01648703159 | R30: -5.231194752e-05 | T30: 19 | U30: 0.05863342589 | V30: 98.54485542 | W30: 99.68165543 | X30: 1.136800008
B31: 20 | C31: 5 | D31: 100 | E31: 100 | F31: 2.179053679 | G31: 2.179053679 | H31: 102.1790537 | I31: 102.1790537 | J31: 50 | K31: 20 | L31: 0.06469746856 | M31: 0.06470051272 | N31: 3.044162832e-06 | O31: 20 | P31: 0.01696900843 | Q31: 0.01687719676 | R31: -9.18116668e-05 | T31: 20 | U31: 0.06194993895 | V31: 100 | W31: 100 | X31: 0
C38: =IF(B38="", "", B38*$H$6) -> 

Sheet config
B2: TAB: CONFIGURATION FILE | C2: Calculation enabled | E2: TRUE | G2: Test connection | I2: =_xll.AC.test.connection() -> host: CA2013466W3; user: Konstantin.Rybakov; key: null
B4: Output keys | G4: Output array sizes
B6: Key | C6: Description | G6: Array formula cell address | H6: number of rows | I6: number of cols | J6: Description
B7: Bond parameters | G7: =addressFla(params!C5) -> 'params'!$C$5 | H7: =params!N47-1 -> 277 | I7: 1 | J7: Sample volatility moving-average series
B8: principal-amount | C8: Bond principal amount | G8: =addressFla(params!H22) -> 'params'!$H$22 | H8: =params!J19 -> 13 | I8: =params!L19 -> 3 | J8: Data = [period, drift, drift cumulative, yield]
B9: dt | C9: Tree time increment value (in years) | G9: =addressFla(sample!N13) -> 'sample'!$N$13 | H9: =sample!D10 -> 10 | I9: 2 | J9: Sample bond prices
B10: period-start | C10: First period of the bond cash flows | G10: =addressFla(cf!L7) -> 'cf'!$L$7 | H10: =M40 -> 21 | I10: =cf!D26 -> 8 | J10: Bond cash flows
B11: period-maturity | C11: Maturity period of the cash flows | G11: =addressFla(value!E7) -> 'value'!$E$7 | H11: =M41 -> 20 | I11: =M40 -> 21 | J11: Bond value in the presence of the option
B12: period-end | C12: Last period of the cash flows | G12: =addressFla(value!D7) -> 'value'!$D$7 | H12: =H11 -> 20 | I12: 1 | J12: Bond collection of states
B13: tenor-remaining | C13: Sample bond remaning tenor | G13: =addressFla(bullet!E7) -> 'bullet'!$E$7 | H13: =H11 -> 20 | I13: =I11 -> 21 | J13: Bond bullet value
B14: coupon-rate | C14: Sample bond coupon rate | G14: =addressFla(action!E7) -> 'action'!$E$7 | H14: =H11 -> 20 | I14: =I11 -> 21 | J14: Option exercise action value
B15: coupon-frequency | C15: Sample bond coupon frequency | G15: =addressFla(D!E7) -> 'D'!$E$7 | H15: =H11 -> 20 | I15: =I11 -> 21 | J15: Tree state distribution
B16: make-whole-duration | C16: Sample bond remaining duration of make-whole provision | G16: =addressFla(charts!C10) -> 'charts'!$C$10 | H16: =H15 -> 20 | I16: 2 | J16: Terminal state distribution
B17: redemption-premium-post-make-whole | C17: Sample bond redemption premium after make-whole provision termination | G17: =addressFla(charts!G10) -> 'charts'!$G$10 | H17: =M40 -> 21 | I17: 2 | J17: State at which action switches from non-exercise to exercise
B18: redemption-premium-schedule | C18: Customized redemption premium schedule | G18: =addressFla(charts!K10) -> 'charts'!$K$10 | H18: =M40 -> 21 | I18: 2 | J18: Tree bounds
B19: amortization-rate-annual | C19: Annual rate of principal amortization | G19: =addressFla(validate!D11) -> 'validate'!$D$11 | H19: =H10 -> 21 | I19: =I10 -> 8 | J19: Test model cash flows
B20: amortization-schedule | C20: Customized principal amortization schedule | G20: =addressFla(validate!K10) -> 'validate'!$K$10 | H20: =validate!N8 -> 22 | I20: =validate!M8 -> 4 | J20: Test model against numeric interest rate mean path
B21: interest-deferral-period | C21: Last interest deferral period | G21: =addressFla(validate!O10) -> 'validate'!$O$10 | H21: =validate!R8 -> 22 | I21: =validate!Q8 -> 4 | J21: Test model against numeric interest rate stdev path
B22: is-interest-compound | C22: Indicator of whether edefrred interest is compounded or not | G22: =addressFla(validate!T10) -> 'validate'!$T$10 | H22: =validate!W8 -> 22 | I22: =validate!V8 -> 5 | J22: Test theoretical against numerical bond bullet prices
B23: sample-prices | C23: Sample bullet and actual prices estimated by calculator
B24: bond-cash-flows | C24: Bond cash flows | G24: Graph configuration
B25: sample-bond-cash-flows | C25: Sample bond cash flows | G25: Parameter | H25: Value | J25: Description
B26: sample-bond-index | C26: Index of the sample bond | G26: line | H26: yes | J26: Set to yes/no to set line visible or non-visible
G27: line-size | H27: 1.5 | J27: Set line size
B28: Process parameters | G28: marker | H28: no | J28: Set to yes/no to set markers visible or non-visible
B29: srm-name | C29: Name of the shrt-rate model (Vasicek, CIR, etc.) | G29: marker-size | H29: 2 | J29: Set markers size (larger or equal than 2)
B30: srm-params | C30: Parameters of the estimated model | G30: exclude-series | J30: List of series names that are not modified
B31: volatility | C31: Short-rate volatility parameter | G31: exclude-charts | J31: List of charts that are not modified
B32: volatility-function | C32: Short-rate volatility function | G32: reference-chart | H32: 1 | J32: Chart index used for series colors mar]tching
B33: drift | C33: Short-rate drift parameter | G33: match-colors | H33: yes | J33: Set yes if colors of each series is matched to the series color in the reference chart
B34: drift-function | C34: Short-rate drift term structure
B35: mean-reversion | C35: Short-rate mean-reversion parameter | G35: Implemented models and default parameters
B36: term-structure | C36: Yield term structure
B37: srm-functions-estimate | C37: Array with the data = [period, drift, drift cumulative, yield] | G37: Model | I37: dx-down | J37: dx-up
B38: srm-validate-objects | C38: Validation objects used for option calculation testing | G38: Vasicek | I38: 3 | J38: 3 | K38: =summary!B9 -> maturity term | M38: =summary!C9 -> 5
B39: validate-mean-path | C39: Mean of terminal state distribution | G39: Cox-Ingersoll-Ross (CIR) | I39: 2 | J39: 4 | K39: =summary!B12 -> dt | M39: =summary!C12 -> 0.25
B40: validate-stdev-path | C40: Standard deviation of terminal state distribution | G40: Hull-White, extended Vasicek | I40: 3 | J40: 3 | K40: nT | M40: =summary!C17+1 -> 21
B41: validate-price-bond-bullet | C41: Bullet bond value | G41: Hull-White, extended CIR | I41: 2 | J41: 4 | K41: =tree!B16 -> X-count | M41: =tree!C16 -> 20
B42: srm-validation-summary | C42: Validation summary: (bullet prices and terminal and implied distribution parameters) | K42: Display adjusted (correct) call (put) option | M42: TRUE
B43: tenor-term-structure | C43: Maximum tenor used in the term structure | G43: Interest rate options
B44: sample-size | C44: Sample size used in volatility estimation | G44: call
B45: sample-size-min | C45: Minimum sample size used in volatility function estimation | G45: put
B46: Q-adjustment | C46: Type of the Q adjustment (0 - no adjustment, 1 - contraction mapping, 2 - optimization)
B47: Q-rho | C47: Parameter applied in the transition probability adjustment | G47: Interest rate calculator methods
B48: Q-lambda | C48: Adjust negative values in transition probabilities | G48: par-value | J48: Estimate the value y0 such that the bond bullet value is equal to par
G49: value-option | J49: Estimate the bond bullet prices and prices in the presence of the option
B50: Tree parameters | G50: bond-yields | J50: Estimate the bond bullet yields and yields in the presence of the option
B51: maturity | C51: Maturity of the diffusion process
B52: state-initial | C52: Initial state of the diffusion process | G52: Bond calculator parameters
B53: state-value | C53: State values (as a tree) | G53: bond-price | J53: The full (dirty) price of the bond
B54: tree-states | C54: State values (as a list) | G54: bond-price-bullet | J54: The full (dirty) bullet price of the bond (option-adjusted)
B55: stats-tree-bounds | C55: The bounds of the tree (minimum and amximum state path) | G55: bond-ytm | J55: The bond yield to maturity (based on bond clean price)
B56: Q | C56: Transition probabilities (as array for period t) | G56: bond-ytm-bullet | J56: The bond bullet yield to maturity
B57: P | C57: State probabilities (as a tree) | G57: mode-action | J57: Optimal mode action estimated for the tree
B58: action-switch-node | C58: State at which the action switches from non-exercise to exercise | G58: objective | J58: Objective function defined on tree states
B59: stats-distribution | C59: State distribution at maturity date | G59: discount | J59: Discount function defined on tree states
B60: summary-table | C60: Summary of the key Markov process output data | G60: yield-par | J60: Initial short-rate value estimated so that bond value equals par
B61: tree-params | C61: Parameters used to construct and estimate the tree | G61: coupon-par | J61: Calibrated coupon rate such that bond bullet value is adjusted to par
G62: annuity-adjustment-factor | J62: Tree-based annuity adjustment based on constant function
B63: Option parameters | G63: annuity-adjustment-factor-constant | J63: Tree-based annuity adjustment based on option non-exercised indicator function
B64: option | C64: Evaluated option (put or call)
B65: adjust-to-par | C65: Set to 1 if coupon rate is adjusted so that the bullet price equals to par

Sheet guide
B2: Package: SRM Interest rate process modelling The objective of the model is to analyze fixed income securities, specifically bonds. The template allows to set generic parameters for the interest rate tree but generally assumes specific inputs for the calculated bond prices and related interest rate options. Modelling bond prices The bond prices are modelled as follows: 1. The bond terminal value. The terminal value is generally assumed to be equal to the sum of the outstanding principal value and the accrued interest. The outstanding principal value depends on the (i) time period; (ii) applied amortization schedule; (iii) and exercised options. The accrued interest depends on the (i) time period; (ii) interest payment schedule; and (iii) outstanding balances used as a base for interest calculations. 2. The bond coupon payments. The bond coupon payments depend on time period and interest payment terms. Fixed interest payments are assumed (will be extended to variable interest rate). 3. Redemption price. The redemption price models the penalty that is applied in the case of bond option exercise. Generally, both call (early prepayment) and put (pay-on-demand) options nvolve a penalty that determines the bond redemption price. 4. Amortization schedule. The schedule determines the timing of bond principal repayments. Based on the amortization schedule, the outstanding principal balances are calculated. Notes: A. Steady state. The mean reversion process is assumed to converge to current yield rate: ϑ = α x y0; B. Par value. If the bond at t=0 is priced at par, the initial value y0 must be calibrated to generate par value (y0 = coupon will not produce par value because the underlying yield rate process is modelled for zero-coupon bonds and has an increasing / decreasing term structure); | K2: Package: SRM Short cut key combinations: Ctrl+Shft+C - calculate all; Ctrl+Shift+R - refresh addin; Ctrl+Shft+S - set the data ranges; Ctrl+Shft+D - disable calculations; Ctrl+Shft+G - update graphs, Ctrl+Shft+H - highlight the graph used as a reference Markov tree objects and output IMarkovTreeR1 tree = Markov.tree(int T, double x0, Map states, Object Q); Construct Markov tree object using the following paarmeters: T - number of periods x0 - initial state, states - Map: X-min - minimum state value, X-max - maximum state value; X-count - number of states; and X-type which is set either to uniform or log-uniform to describe how the states are generated within the range; Q - object that describes transition probabilities (typically in the form of a function: (t, x) => {xi => pi} that mapps given period and state (t, x) into a mapping {xi => pi} between next period states and probabilities; Object[][] out = Markov.get(IMarkovTreeR1 tree, String key, Map<String, Object> params); Return the value of a given field (referred to bya given key) of the Markov tree using the given set of parameters (if necessary). Keys include: state-values - an array[][] that describes tree structure (contains a state value in a given cell if the cell belong to the tree or zero otherwise); Q - returns an array of transition probabilities Q(xt, xt+1) for a given period t; P - return an array of tree state probabilites
